Workbook

Sheet INGRESO DE DATOS
O2: 24 years | P2: FALSE
O3: Coaseguro (Panamá) | P3: FALSE
O11: Descuento 24 años (por edad) | S11: Type | T11: Nuevo Negocio
O12: age | P12: Discount (%) | Q12: Parameter | T12: Renovación
O13: 24 | P13: 35 | Q13: =1-P13/100 -> 0.65
O14: 25 | P14: 30 | Q14: =1-P14/100 -> 0.7
O15: 26 | P15: 25 | Q15: 0.75
O16: 27 | P16: 20 | Q16: 0.8
O17: 28 | P17: 15 | Q17: 0.85
O18: 29 | P18: 6 | Q18: 0.94
O19: All ages | P19: 0 | Q19: 1 | S19: Type selected | T19: 2
H21: FALSE
O22: NEW BUSINESS DISCOUNT
O23: Flex 1 | P23: Flex 2
O24: 0 | P24: 0
O30: Descuento de 24 años: | P30: =IF(P2,_xlfn.SWITCH(C43,O13,Q13,O14,Q14,O15,Q15,O16,Q16,O17,Q17,O18,Q18,Q19),Q19) -> 1
O32: Descuento por variante de coaseguro | P32: =IF(P3=TRUE,0.25,1) -> 1
O35: Descuento si es nuevo negocio:
A37: Nombre del Asegurado Titular: | C37: John Doe | O37: NB DISCOUNT (MULT. FACTOR)
O38: Flex 1 | P38: Flex 2
A39: Número de adultos en la póliza: | C39: 1 | O39: =IF($T$19=1,(O24/100),IF($T$19=3,(U24/100),0)) -> 0 | P39: =IF($T$19=1,(P24/100),IF($T$19=3,(V24/100),0)) -> 0
A41: Número total de dependientes en la póliza: | C41: 0
O42: Descuento combinado 24 años y Nuevo Negocio
A43: Edad del Asegurado Titular: | C43: 29
A45: Edad del/la cónyuge: | C45: 18 | O45: NEW BUSINESS DISCOUNT
O46: Flex 1 | P46: Flex 2
O47: =(1-O39)*$P$30 -> 1 | P47: =(1-P39)*$P$30 -> 1
A49: Tarifas en US$ | Validas: 1 de enero de 2024

Sheet BUPA ESSENTIAL FLEX 1
K1: RESUMEN DE BENEFICIOS | X1: RESUMEN DE BENEFICIOS
A5: Cotización de Seguro Médico Internacional Bupa Essential Flex 1 Tarifas en US$ | Validas: 1 de enero de 2024
A13: Nombre del Asegurado Titular | B13: =+'INGRESO DE DATOS'!$C$37 -> John Doe
A15: Número de adultos en la póliza | B15: ='INGRESO DE DATOS'!C39 -> 1
A17: Número de Dependientes en la póliza | B17: =+'INGRESO DE DATOS'!$C$41 -> 0 | C17: =IF('INGRESO DE DATOS'!$P$2=TRUE, "Cotización para dependiente de 24 años","") -> 
A19: Edad del Asegurado Titular | B19: =+'INGRESO DE DATOS'!$C$43 -> 29 | F19: Edad del/la conyuge | H19: =+'INGRESO DE DATOS'!$C$45 -> 18
A21: Fecha de la cotización | B21: =NOW() -> 2023-12-27T14:24:14.030
A23: =IF('INGRESO DE DATOS'!P3=TRUE,"Variante con coaseguro fuera del país de residencia: SI","Variante con coaseguro fuera del país de residencia: NO") -> Variante con coaseguro fuera del país de residencia: NO
A25: DEDUCIBLES | C25: PLAN 1 | D25: PLAN 2 | E25: PLAN 3 | F25: PLAN 4 | G25: PLAN 5 | H25: PLAN 6
A26: En el país de residencia | C26: 250 | D26: 500 | E26: 1000 | F26: 2000 | G26: 5000 | H26: 10000
A27: Fuera del país de residencia | C27: 500 | D27: 1000 | E27: 2000 | F27: 4000 | G27: 5000 | H27: 10000
A29: TARIFAS ANUALES
A30: Prima para Asegurado Titular | C30: =VLOOKUP($B$19,Tablas!$A$6:$H$72,3,TRUE) -> 3004.5316 | D30: =VLOOKUP($B$19,Tablas!$A$6:$H$72,4,TRUE) -> 2612.5862 | E30: =VLOOKUP($B$19,Tablas!$A$6:$H$72,5,TRUE) -> 2381.5568 | F30: =VLOOKUP($B$19,Tablas!$A$6:$H$72,6,TRUE) -> 1930.992 | G30: =VLOOKUP($B$19,Tablas!$A$6:$H$72,7,TRUE) -> 1429.8536 | H30: =VLOOKUP($B$19,Tablas!$A$6:$H$72,8,TRUE) -> 1206.87
A31: Prima para conyuge | C31: =IF($B$15=1,0,(VLOOKUP($H$19,Tablas!$A$6:$H$72,3,TRUE))) -> 0 | D31: =IF($B$15=1,0,(VLOOKUP($H$19,Tablas!$A$6:$H$72,4,TRUE))) -> 0 | E31: =IF($B$15=1,0,(VLOOKUP($H$19,Tablas!$A$6:$H$72,5,TRUE))) -> 0 | F31: =IF($B$15=1,0,(VLOOKUP($H$19,Tablas!$A$6:$H$72,6,TRUE))) -> 0 | G31: =IF($B$15=1,0,(VLOOKUP($H$19,Tablas!$A$6:$H$72,7,TRUE))) -> 0 | H31: =IF($B$15=1,0,(VLOOKUP($H$19,Tablas!$A$6:$H$72,8,TRUE))) -> 0
A32: Prima para hijo (s) | C32: =IF($B$17=0,0,(VLOOKUP($B$17,Tablas!$A$73:$H$75,3,TRUE))) -> 0 | D32: =IF($B$17=0,0,(VLOOKUP($B$17,Tablas!$A$73:$H$75,4,TRUE))) -> 0 | E32: =IF($B$17=0,0,(VLOOKUP($B$17,Tablas!$A$73:$H$75,5,TRUE))) -> 0 | F32: =IF($B$17=0,0,(VLOOKUP($B$17,Tablas!$A$73:$H$75,6,TRUE))) -> 0 | G32: =IF($B$17=0,0,(VLOOKUP($B$17,Tablas!$A$73:$H$75,7,TRUE))) -> 0 | H32: =IF($B$17=0,0,(VLOOKUP($B$17,Tablas!$A$73:$H$75,8,TRUE))) -> 0
A33: Total de Prima neta | C33: =SUM(C30:C32) -> 3004.5316 | D33: =SUM(D30:D32) -> 2612.5862 | E33: 2381.5568 | F33: =SUM(F30:F32) -> 1930.992 | G33: =SUM(G30:G32) -> 1429.8536 | H33: 1206.87
A34: Ajuste por la variante con coaseguro fuera del país de residencia | C34: =IF('INGRESO DE DATOS'!$P$3,C33*-15%,0) -> 0 | D34: =IF('INGRESO DE DATOS'!$P$3,D33*-15%,0) -> 0 | E34: =IF('INGRESO DE DATOS'!$P$3,E33*-15%,0) -> 0 | F34: =IF('INGRESO DE DATOS'!$P$3,F33*-15%,0) -> 0
A35: Tarifa administrativa anual | C35: =Tablas!$Y$2 -> 57.47 | D35: =Tablas!$Y$2 -> 57.47 | E35: =Tablas!$Y$2 -> 57.47 | F35: =Tablas!$Y$2 -> 57.47 | G35: =Tablas!$Y$2 -> 57.47 | H35: =Tablas!$Y$2 -> 57.47
A36: VAT (5%) :
A37: ITBMS (7%)
A38: TOTAL ANUAL | C38: =SUM(C33:C37) -> 3062.0016 | D38: =SUM(D33:D37) -> 2670.0562 | E38: 2439.0268 | F38: =SUM(F33:F37) -> 1988.462 | G38: 1487.3236 | H38: 1264.34
A40: TARIFAS SEMESTRALES
A41: Prima para Asegurado Titular | C41: =VLOOKUP($B$19,Tablas!$A$458:$H$524,3,TRUE) -> 1547.333774 | D41: =VLOOKUP($B$19,Tablas!$A$458:$H$524,4,TRUE) -> 1345.481893 | E41: =VLOOKUP($B$19,Tablas!$A$458:$H$524,5,TRUE) -> 1226.501752 | F41: =VLOOKUP($B$19,Tablas!$A$458:$H$524,6,TRUE) -> 994.46088 | G41: =VLOOKUP($B$19,Tablas!$A$458:$H$524,7,TRUE) -> 736.374604 | H41: =VLOOKUP($B$19,Tablas!$A$458:$H$524,8,TRUE) -> 621.53805
A42: Prima para conyuge | C42: =IF($B$15=1,0,(VLOOKUP($H$19,Tablas!$A$458:$H$524,3,TRUE))) -> 0 | D42: =IF($B$15=1,0,(VLOOKUP($H$19,Tablas!$A$458:$H$524,4,TRUE))) -> 0 | E42: =IF($B$15=1,0,(VLOOKUP($H$19,Tablas!$A$458:$H$524,5,TRUE))) -> 0 | F42: =IF($B$15=1,0,(VLOOKUP($H$19,Tablas!$A$458:$H$524,6,TRUE))) -> 0 | G42: =IF($B$15=1,0,(VLOOKUP($H$19,Tablas!$A$458:$H$524,7,TRUE))) -> 0 | H42: =IF($B$15=1,0,(VLOOKUP($H$19,Tablas!$A$458:$H$524,8,TRUE))) -> 0
A43: Prima para hijo (s) | C43: =IF($B$17=0,0,(VLOOKUP($B$17,Tablas!$A$525:$H$527,3,TRUE))) -> 0 | D43: =IF($B$17=0,0,(VLOOKUP($B$17,Tablas!$A$525:$H$527,4,TRUE))) -> 0 | E43: =IF($B$17=0,0,(VLOOKUP($B$17,Tablas!$A$525:$H$527,5,TRUE))) -> 0 | F43: =IF($B$17=0,0,(VLOOKUP($B$17,Tablas!$A$525:$H$527,6,TRUE))) -> 0 | G43: =IF($B$17=0,0,(VLOOKUP($B$17,Tablas!$A$525:$H$527,7,TRUE))) -> 0 | H43: =IF($B$17=0,0,(VLOOKUP($B$17,Tablas!$A$525:$H$527,8,TRUE))) -> 0
A44: Total de Prima neta | C44: =SUM(C41:C43) -> 1547.333774 | D44: =SUM(D41:D43) -> 1345.481893 | E44: 1226.501752 | F44: =SUM(F41:F43) -> 994.46088 | G44: =SUM(G41:G43) -> 736.374604 | H44: 621.53805
A45: Ajuste por la variante con coaseguro fuera del país de residencia | C45: =IF('INGRESO DE DATOS'!$P$3,C44*-15%,0) -> 0 | D45: =IF('INGRESO DE DATOS'!$P$3,D44*-15%,0) -> 0 | E45: =IF('INGRESO DE DATOS'!$P$3,E44*-15%,0) -> 0 | F45: =IF('INGRESO DE DATOS'!$P$3,F44*-15%,0) -> 0
A46: Tarifa administrativa anual | C46: =Tablas!$Y$2 -> 57.47 | D46: =Tablas!$Y$2 -> 57.47 | E46: =Tablas!$Y$2 -> 57.47 | F46: =Tablas!$Y$2 -> 57.47 | G46: =Tablas!$Y$2 -> 57.47 | H46: =Tablas!$Y$2 -> 57.47
A47: VAT (5%) :
A48: ITBMS (7%)
A49: TOTAL de primera cuota | C49: =SUM(C44:C48) -> 1604.803774 | D49: =SUM(D44:D48) -> 1402.951893 | E49: 1283.971752 | F49: =SUM(F44:F48) -> 1051.93088 | G49: =SUM(G44:G48) -> 793.844604 | H49: 679.00805
A50: Costo de segunda cuota | C50: =C49-C46 -> 1547.333774 | D50: =D49-D46 -> 1345.481893 | E50: 1226.501752 | F50: =F49-F46 -> 994.46088 | G50: =G49-G46 -> 736.374604 | H50: 621.53805
A51: TOTAL ANUAL | C51: =C49+C50 -> 3152.137548 | D51: =D49+D50 -> 2748.433786 | E51: 2510.473504 | F51: =F49+F50 -> 2046.39176 | G51: 1530.219208 | H51: 1300.5461
A53: TARIFAS TRIMESTRALES
A54: Prima para Asegurado Titular | C54: =VLOOKUP($B$19,Tablas!$A$685:$H$751,3,TRUE) -> 784.9338805 | D54: =VLOOKUP($B$19,Tablas!$A$685:$H$751,4,TRUE) -> 682.5381447 | E54: =VLOOKUP($B$19,Tablas!$A$685:$H$751,5,TRUE) -> 622.181714 | F54: =VLOOKUP($B$19,Tablas!$A$685:$H$751,6,TRUE) -> 504.47166 | G54: =VLOOKUP($B$19,Tablas!$A$685:$H$751,7,TRUE) -> 373.549253 | H54: =VLOOKUP($B$19,Tablas!$A$685:$H$751,8,TRUE) -> 315.2947875
A55: Prima para conyuge | C55: =IF($B$15=1,0,(VLOOKUP($H$19,Tablas!$A$685:$H$751,3,TRUE))) -> 0 | D55: =IF($B$15=1,0,(VLOOKUP($H$19,Tablas!$A$685:$H$751,4,TRUE))) -> 0 | E55: =IF($B$15=1,0,(VLOOKUP($H$19,Tablas!$A$685:$H$751,5,TRUE))) -> 0 | F55: =IF($B$15=1,0,(VLOOKUP($H$19,Tablas!$A$685:$H$751,6,TRUE))) -> 0 | G55: =IF($B$15=1,0,(VLOOKUP($H$19,Tablas!$A$685:$H$751,7,TRUE))) -> 0 | H55: =IF($B$15=1,0,(VLOOKUP($H$19,Tablas!$A$685:$H$751,8,TRUE))) -> 0
A56: Prima para hijo (s) | C56: =IF($B$17=0,0,(VLOOKUP($B$17,Tablas!$A$752:$H$754,3,TRUE))) -> 0 | D56: =IF($B$17=0,0,(VLOOKUP($B$17,Tablas!$A$752:$H$754,4,TRUE))) -> 0 | E56: =IF($B$17=0,0,(VLOOKUP($B$17,Tablas!$A$752:$H$754,5,TRUE))) -> 0 | F56: =IF($B$17=0,0,(VLOOKUP($B$17,Tablas!$A$752:$H$754,6,TRUE))) -> 0 | G56: =IF($B$17=0,0,(VLOOKUP($B$17,Tablas!$A$752:$H$754,7,TRUE))) -> 0 | H56: =IF($B$17=0,0,(VLOOKUP($B$17,Tablas!$A$752:$H$754,8,TRUE))) -> 0
A57: Total de Prima neta | C57: =SUM(C54:C56) -> 784.9338805 | D57: =SUM(D54:D56) -> 682.5381447 | E57: 622.181714 | F57: =SUM(F54:F56) -> 504.47166 | G57: =SUM(G54:G56) -> 373.549253 | H57: 315.2947875
A58: Ajuste por la variante con coaseguro fuera del país de residencia | C58: =IF('INGRESO DE DATOS'!$P$3,C57*-15%,0) -> 0 | D58: =IF('INGRESO DE DATOS'!$P$3,D57*-15%,0) -> 0 | E58: =IF('INGRESO DE DATOS'!$P$3,E57*-15%,0) -> 0 | F58: =IF('INGRESO DE DATOS'!$P$3,F57*-15%,0) -> 0
A59: Tarifa administrativa anual | C59: =50*Tablas!$X$2 -> 57.47 | D59: =50*Tablas!$X$2 -> 57.47 | E59: =50*Tablas!$X$2 -> 57.47 | F59: =50*Tablas!$X$2 -> 57.47 | G59: =50*Tablas!$X$2 -> 57.47 | H59: =50*Tablas!$X$2 -> 57.47
A60: VAT (5%) :
A61: ITBMS (7%)
A62: TOTAL de primera cuota | C62: =SUM(C57:C61) -> 842.4038805 | D62: =SUM(D57:D61) -> 740.0081447 | E62: 679.651714 | F62: =SUM(F57:F61) -> 561.94166 | G62: =SUM(G57:G61) -> 431.019253 | H62: 372.7647875
A63: Costo de tarifa trimestral 2 a 4 | C63: =C62-C59 -> 784.9338805 | D63: =D62-D59 -> 682.5381447 | E63: 622.181714 | F63: =F62-F59 -> 504.47166 | G63: =G62-G59 -> 373.549253 | H63: 315.2947875
A64: TOTAL ANUAL | C64: =C62+(C63*3) -> 3197.205522 | D64: =D62+(D63*3) -> 2787.622579 | E64: 2546.196856 | F64: =F62+(F63*3) -> 2075.35664 | G64: 1551.667012 | H64: 1318.64915
A66: TARIFAS MENSUALES
A67: Prima para Asegurado Titular | C67: =VLOOKUP($B$19,Tablas!$A$80:$H$146,3,TRUE) -> 265.4002913 | D67: =VLOOKUP($B$19,Tablas!$A$80:$H$146,4,TRUE) -> 230.7784477 | E67: =VLOOKUP($B$19,Tablas!$A$80:$H$146,5,TRUE) -> 210.3708507 | F67: =VLOOKUP($B$19,Tablas!$A$80:$H$146,6,TRUE) -> 170.57096 | G67: =VLOOKUP($B$19,Tablas!$A$80:$H$146,7,TRUE) -> 126.3037347 | H67: =VLOOKUP($B$19,Tablas!$A$80:$H$146,8,TRUE) -> 106.60685
A68: Prima para conyuge | C68: =IF($B$15=1,0,(VLOOKUP($H$19,Tablas!$A$80:$H$146,3,TRUE))) -> 0 | D68: =IF($B$15=1,0,(VLOOKUP($H$19,Tablas!$A$80:$H$146,4,TRUE))) -> 0 | E68: =IF($B$15=1,0,(VLOOKUP($H$19,Tablas!$A$80:$H$146,5,TRUE))) -> 0 | F68: =IF($B$15=1,0,(VLOOKUP($H$19,Tablas!$A$80:$H$146,6,TRUE))) -> 0 | G68: =IF($B$15=1,0,(VLOOKUP($H$19,Tablas!$A$80:$H$146,7,TRUE))) -> 0 | H68: =IF($B$15=1,0,(VLOOKUP($H$19,Tablas!$A$80:$H$146,8,TRUE))) -> 0
A69: Prima para hijo (s) | C69: =IF($B$17=0,0,(VLOOKUP($B$17,Tablas!$A$147:$H$149,3,TRUE))) -> 0 | D69: =IF($B$17=0,0,(VLOOKUP($B$17,Tablas!$A$147:$H$149,4,TRUE))) -> 0 | E69: =IF($B$17=0,0,(VLOOKUP($B$17,Tablas!$A$147:$H$149,5,TRUE))) -> 0 | F69: =IF($B$17=0,0,(VLOOKUP($B$17,Tablas!$A$147:$H$149,6,TRUE))) -> 0 | G69: =IF($B$17=0,0,(VLOOKUP($B$17,Tablas!$A$147:$H$149,7,TRUE))) -> 0 | H69: =IF($B$17=0,0,(VLOOKUP($B$17,Tablas!$A$147:$H$149,8,TRUE))) -> 0
A70: Total de Prima neta | C70: =SUM(C67:C69) -> 265.4002913 | D70: =SUM(D67:D69) -> 230.7784477 | E70: 210.3708507 | F70: =SUM(F67:F69) -> 170.57096 | G70: =SUM(G67:G69) -> 126.3037347 | H70: 106.60685
A71: Ajuste por la variante con coaseguro fuera del país de residencia | C71: =IF('INGRESO DE DATOS'!$P$3,C70*-15%,0) -> 0 | D71: =IF('INGRESO DE DATOS'!$P$3,D70*-15%,0) -> 0 | E71: =IF('INGRESO DE DATOS'!$P$3,E70*-15%,0) -> 0 | F71: =IF('INGRESO DE DATOS'!$P$3,F70*-15%,0) -> 0
A72: Tarifa administrativa anual | C72: =Tablas!$Y$2 -> 57.47 | D72: =Tablas!$Y$2 -> 57.47 | E72: =Tablas!$Y$2 -> 57.47 | F72: =Tablas!$Y$2 -> 57.47 | G72: =Tablas!$Y$2 -> 57.47 | H72: =Tablas!$Y$2 -> 57.47
A73: VAT (5%) :
A74: ITBMS (7%)
A75: TOTAL de primera cuota | C75: =SUM(C70:C74) -> 322.8702913 | D75: =SUM(D70:D74) -> 288.2484477 | E75: 267.8408507 | F75: =SUM(F70:F74) -> 228.04096 | G75: =SUM(G70:G74) -> 183.7737347 | H75: 164.07685
A76: Costo de Tarifa mensual de 2 a 12 | C76: =C75-C72 -> 265.4002913 | D76: =D75-D72 -> 230.7784477 | E76: 210.3708507 | F76: =F75-F72 -> 170.57096 | G76: =G75-G72 -> 126.3037347 | H76: 106.60685
A77: TOTAL ANUAL | C77: =C75+(C76*11) -> 3242.273496 | D77: =D75+(D76*11) -> 2826.811372 | E77: 2581.920208 | F77: =F75+(F76*11) -> 2104.32152 | G77: 1573.114816 | H77: 1336.7522
A79: Este presupuesto solamente tiene carácter informativo y en ningún momento expresa compromiso legal para suministrarle cobertura de seguro. La emisión de una póliza de seguro Bupa está sujeta a todas las evaluaciones de riesgo por parte de Bupa y a la recepción de todos los pagos de prima requeridos.

Sheet BUPA ESSENTIAL FLEX 2
K1: RESUMEN DE BENEFICIOS | X1: RESUMEN DE BENEFICIOS
A5: Cotización de Seguro Médico Internacional Bupa Essential Flex 2 Tarifas en US$ | Validas: 1 de enero de 2024
A13: Nombre del Asegurado Titular | B13: =+'INGRESO DE DATOS'!$C$37 -> John Doe
A15: Número de adultos en la póliza | B15: ='INGRESO DE DATOS'!C39 -> 1
A17: Número de Dependientes en la póliza | B17: =+'INGRESO DE DATOS'!$C$41 -> 0 | C17: =IF('INGRESO DE DATOS'!$P$2=TRUE, "Cotización para dependiente de 24 años","") -> 
A19: Edad del Asegurado Titular | B19: =+'INGRESO DE DATOS'!$C$43 -> 29 | F19: Edad del/la conyuge | H19: =+'INGRESO DE DATOS'!$C$45 -> 18
A21: Fecha de la cotización | B21: =NOW() -> 2023-12-27T14:24:14.030
A23: =IF('INGRESO DE DATOS'!P3=TRUE,"Variante con coaseguro fuera del país de residencia: SI","Variante con coaseguro fuera del país de residencia: NO") -> Variante con coaseguro fuera del país de residencia: NO
A25: DEDUCIBLES | C25: PLAN 1 | D25: PLAN 2 | E25: PLAN 3 | F25: PLAN 4 | G25: PLAN 5 | H25: PLAN 6
A26: En el país de residencia | C26: 250 | D26: 500 | E26: 1000 | F26: 2000 | G26: 5000 | H26: 10000
A27: Fuera del país de residencia | C27: 500 | D27: 1000 | E27: 2000 | F27: 4000 | G27: 5000 | H27: 10000
A29: TARIFAS ANUALES
A30: Prima para Asegurado Titular | C30: =VLOOKUP($B$19,Tablas!$A$1515:$H$1581,3,TRUE) -> 2404.5448 | D30: =VLOOKUP($B$19,Tablas!$A$1515:$H$1581,4,TRUE) -> 2089.6092 | E30: =VLOOKUP($B$19,Tablas!$A$1515:$H$1581,5,TRUE) -> 1904.5558 | F30: =VLOOKUP($B$19,Tablas!$A$1515:$H$1581,6,TRUE) -> 1544.7936 | G30: =VLOOKUP($B$19,Tablas!$A$1515:$H$1581,7,TRUE) -> 1144.8024 | H30: =VLOOKUP($B$19,Tablas!$A$1515:$H$1581,8,TRUE) -> 966.6454
A31: Prima para conyuge | C31: =IF($B$15=1,0,(VLOOKUP($H$19,Tablas!$A$1515:$H$1581,3,TRUE))) -> 0 | D31: =IF($B$15=1,0,(VLOOKUP($H$19,Tablas!$A$1515:$H$1581,4,TRUE))) -> 0 | E31: =IF($B$15=1,0,(VLOOKUP($H$19,Tablas!$A$1515:$H$1581,5,TRUE))) -> 0 | F31: =IF($B$15=1,0,(VLOOKUP($H$19,Tablas!$A$1515:$H$1581,6,TRUE))) -> 0 | G31: =IF($B$15=1,0,(VLOOKUP($H$19,Tablas!$A$1515:$H$1581,7,TRUE))) -> 0 | H31: =IF($B$15=1,0,(VLOOKUP($H$19,Tablas!$A$1515:$H$1581,8,TRUE))) -> 0
A32: Prima para hijo (s) | C32: =IF($B$17=0,0,(VLOOKUP($B$17,Tablas!$A$1582:$H$1584,3,TRUE))) -> 0 | D32: =IF($B$17=0,0,(VLOOKUP($B$17,Tablas!$A$1582:$H$1584,4,TRUE))) -> 0 | E32: =IF($B$17=0,0,(VLOOKUP($B$17,Tablas!$A$1582:$H$1584,5,TRUE))) -> 0 | F32: =IF($B$17=0,0,(VLOOKUP($B$17,Tablas!$A$1582:$H$1584,6,TRUE))) -> 0 | G32: =IF($B$17=0,0,(VLOOKUP($B$17,Tablas!$A$1582:$H$1584,7,TRUE))) -> 0 | H32: =IF($B$17=0,0,(VLOOKUP($B$17,Tablas!$A$1582:$H$1584,8,TRUE))) -> 0
A33: Total de Prima neta | C33: =SUM(C30:C32) -> 2404.5448 | D33: =SUM(D30:D32) -> 2089.6092 | E33: 1904.5558 | F33: =SUM(F30:F32) -> 1544.7936 | G33: =SUM(G30:G32) -> 1144.8024 | H33: 966.6454
A34: Ajuste por la variante con coaseguro fuera del país de residencia | C34: =IF('INGRESO DE DATOS'!$P$3,C33*-15%,0) -> 0 | D34: =IF('INGRESO DE DATOS'!$P$3,D33*-15%,0) -> 0 | E34: =IF('INGRESO DE DATOS'!$P$3,E33*-15%,0) -> 0 | F34: =IF('INGRESO DE DATOS'!$P$3,F33*-15%,0) -> 0
A35: Tarifa administrativa anual | C35: =Tablas!$Y$2 -> 57.47 | D35: =Tablas!$Y$2 -> 57.47 | E35: =Tablas!$Y$2 -> 57.47 | F35: =Tablas!$Y$2 -> 57.47 | G35: =Tablas!$Y$2 -> 57.47 | H35: =Tablas!$Y$2 -> 57.47
A36: VAT (5%) :
A37: ITBMS (7%)
A38: TOTAL ANUAL | C38: =SUM(C33:C37) -> 2462.0148 | D38: =SUM(D33:D37) -> 2147.0792 | E38: 1962.0258 | F38: 1602.2636 | G38: 1202.2724 | H38: 1024.1154
A40: TARIFAS SEMESTRALES
A41: Prima para Asegurado Titular | C41: =VLOOKUP($B$19,Tablas!$A$1664:$H$1730,3,TRUE) -> 1238.340572 | D41: =VLOOKUP($B$19,Tablas!$A$1664:$H$1730,4,TRUE) -> 1076.148738 | E41: =VLOOKUP($B$19,Tablas!$A$1664:$H$1730,5,TRUE) -> 980.846237 | F41: =VLOOKUP($B$19,Tablas!$A$1664:$H$1730,6,TRUE) -> 795.568704 | G41: =VLOOKUP($B$19,Tablas!$A$1664:$H$1730,7,TRUE) -> 589.573236 | H41: =VLOOKUP($B$19,Tablas!$A$1664:$H$1730,8,TRUE) -> 497.822381
A42: Prima para conyuge | C42: =IF($B$15=1,0,(VLOOKUP($H$19,Tablas!$A$1664:$H$1730,3,TRUE))) -> 0 | D42: =IF($B$15=1,0,(VLOOKUP($H$19,Tablas!$A$1664:$H$1730,4,TRUE))) -> 0 | E42: =IF($B$15=1,0,(VLOOKUP($H$19,Tablas!$A$1664:$H$1730,5,TRUE))) -> 0 | F42: =IF($B$15=1,0,(VLOOKUP($H$19,Tablas!$A$1664:$H$1730,6,TRUE))) -> 0 | G42: =IF($B$15=1,0,(VLOOKUP($H$19,Tablas!$A$1664:$H$1730,7,TRUE))) -> 0 | H42: =IF($B$15=1,0,(VLOOKUP($H$19,Tablas!$A$1664:$H$1730,8,TRUE))) -> 0
A43: Prima para hijo (s) | C43: =IF($B$17=0,0,(VLOOKUP($B$17,Tablas!$A$1731:$H$1733,3,TRUE))) -> 0 | D43: =IF($B$17=0,0,(VLOOKUP($B$17,Tablas!$A$1731:$H$1733,4,TRUE))) -> 0 | E43: =IF($B$17=0,0,(VLOOKUP($B$17,Tablas!$A$1731:$H$1733,5,TRUE))) -> 0 | F43: =IF($B$17=0,0,(VLOOKUP($B$17,Tablas!$A$1731:$H$1733,6,TRUE))) -> 0 | G43: =IF($B$17=0,0,(VLOOKUP($B$17,Tablas!$A$1731:$H$1733,7,TRUE))) -> 0 | H43: =IF($B$17=0,0,(VLOOKUP($B$17,Tablas!$A$1731:$H$1733,8,TRUE))) -> 0
A44: Total de Prima neta | C44: =SUM(C41:C43) -> 1238.340572 | D44: =SUM(D41:D43) -> 1076.148738 | E44: 980.846237 | F44: =SUM(F41:F43) -> 795.568704 | G44: =SUM(G41:G43) -> 589.573236 | H44: 497.822381
A45: Ajuste por la variante con coaseguro fuera del país de residencia | C45: =IF('INGRESO DE DATOS'!$P$3,C44*-15%,0) -> 0 | D45: =IF('INGRESO DE DATOS'!$P$3,D44*-15%,0) -> 0 | E45: =IF('INGRESO DE DATOS'!$P$3,E44*-15%,0) -> 0 | F45: =IF('INGRESO DE DATOS'!$P$3,F44*-15%,0) -> 0
A46: Tarifa administrativa anual | C46: =Tablas!$Y$2 -> 57.47 | D46: =Tablas!$Y$2 -> 57.47 | E46: =Tablas!$Y$2 -> 57.47 | F46: =Tablas!$Y$2 -> 57.47 | G46: =Tablas!$Y$2 -> 57.47 | H46: =Tablas!$Y$2 -> 57.47
A47: VAT (5%) :
A48: ITBMS (7%)
A49: TOTAL de primera cuota | C49: =SUM(C44:C48) -> 1295.810572 | D49: =SUM(D44:D48) -> 1133.618738 | E49: 1038.316237 | F49: =SUM(F44:F48) -> 853.038704 | G49: =SUM(G44:G48) -> 647.043236 | H49: 555.292381
A50: Costo de segunda cuota | C50: =C49-C46 -> 1238.340572 | D50: =D49-D46 -> 1076.148738 | E50: 980.846237 | F50: =F49-F46 -> 795.568704 | G50: =G49-G46 -> 589.573236 | H50: 497.822381
A51: TOTAL ANUAL | C51: =C49+C50 -> 2534.151144 | D51: =D49+D50 -> 2209.767476 | E51: 2019.162474 | F51: 1648.607408 | G51: 1236.616472 | H51: 1053.114762
A53: TARIFAS TRIMESTRALES
A54: Prima para Asegurado Titular | C54: =VLOOKUP($B$19,Tablas!$A$1739:$H$1805,3,TRUE) -> 628.187329 | D54: =VLOOKUP($B$19,Tablas!$A$1739:$H$1805,4,TRUE) -> 545.9104035 | E54: =VLOOKUP($B$19,Tablas!$A$1739:$H$1805,5,TRUE) -> 497.5652027 | F54: =VLOOKUP($B$19,Tablas!$A$1739:$H$1805,6,TRUE) -> 403.577328 | G54: =VLOOKUP($B$19,Tablas!$A$1739:$H$1805,7,TRUE) -> 299.079627 | H54: =VLOOKUP($B$19,Tablas!$A$1739:$H$1805,8,TRUE) -> 252.5361107
A55: Prima para conyuge | C55: =IF($B$15=1,0,(VLOOKUP($H$19,Tablas!$A$1739:$H$1805,3,TRUE))) -> 0 | D55: =IF($B$15=1,0,(VLOOKUP($H$19,Tablas!$A$1739:$H$1805,4,TRUE))) -> 0 | E55: =IF($B$15=1,0,(VLOOKUP($H$19,Tablas!$A$1739:$H$1805,5,TRUE))) -> 0 | F55: =IF($B$15=1,0,(VLOOKUP($H$19,Tablas!$A$1739:$H$1805,6,TRUE))) -> 0 | G55: =IF($B$15=1,0,(VLOOKUP($H$19,Tablas!$A$1739:$H$1805,7,TRUE))) -> 0 | H55: =IF($B$15=1,0,(VLOOKUP($H$19,Tablas!$A$1739:$H$1805,8,TRUE))) -> 0
A56: Prima para hijo (s) | C56: =IF($B$17=0,0,(VLOOKUP($B$17,Tablas!$A$1806:$H$1808,3,TRUE))) -> 0 | D56: =IF($B$17=0,0,(VLOOKUP($B$17,Tablas!$A$1806:$H$1808,4,TRUE))) -> 0 | E56: =IF($B$17=0,0,(VLOOKUP($B$17,Tablas!$A$1806:$H$1808,5,TRUE))) -> 0 | F56: =IF($B$17=0,0,(VLOOKUP($B$17,Tablas!$A$1806:$H$1808,6,TRUE))) -> 0 | G56: =IF($B$17=0,0,(VLOOKUP($B$17,Tablas!$A$1806:$H$1808,7,TRUE))) -> 0 | H56: =IF($B$17=0,0,(VLOOKUP($B$17,Tablas!$A$1806:$H$1808,8,TRUE))) -> 0
A57: Total de Prima neta | C57: =SUM(C54:C56) -> 628.187329 | D57: =SUM(D54:D56) -> 545.9104035 | E57: 497.5652027 | F57: =SUM(F54:F56) -> 403.577328 | G57: =SUM(G54:G56) -> 299.079627 | H57: 252.5361107
A58: Ajuste por la variante con coaseguro fuera del país de residencia | C58: =IF('INGRESO DE DATOS'!$P$3,C57*-15%,0) -> 0 | D58: =IF('INGRESO DE DATOS'!$P$3,D57*-15%,0) -> 0 | E58: =IF('INGRESO DE DATOS'!$P$3,E57*-15%,0) -> 0 | F58: =IF('INGRESO DE DATOS'!$P$3,F57*-15%,0) -> 0
A59: Tarifa administrativa anual | C59: =Tablas!$Y$2 -> 57.47 | D59: =Tablas!$Y$2 -> 57.47 | E59: =Tablas!$Y$2 -> 57.47 | F59: =Tablas!$Y$2 -> 57.47 | G59: =Tablas!$Y$2 -> 57.47 | H59: =Tablas!$Y$2 -> 57.47
A60: VAT (5%) :
A61: ITBMS (7%)
A62: TOTAL de primera cuota | C62: =SUM(C57:C61) -> 685.657329 | D62: =SUM(D57:D61) -> 603.3804035 | E62: 555.0352027 | F62: =SUM(F57:F61) -> 461.047328 | G62: =SUM(G57:G61) -> 356.549627 | H62: 310.0061107
A63: Costo de tarifa trimestral 2 a 4 | C63: =C62-C59 -> 628.187329 | D63: =D62-D59 -> 545.9104035 | E63: 497.5652027 | F63: =F62-F59 -> 403.577328 | G63: =G62-G59 -> 299.079627 | H63: 252.5361107
A64: TOTAL ANUAL | C64: =C62+(C63*3) -> 2570.219316 | D64: =D62+(D63*3) -> 2241.111614 | E64: 2047.730811 | F64: 1671.779312 | G64: 1253.788508 | H64: 1067.614443
A66: TARIFAS MENSUALES
A67: Prima para Asegurado Titular | C67: =VLOOKUP($B$19,Tablas!$A$1589:$H$1655,3,TRUE) -> 212.4014573 | D67: =VLOOKUP($B$19,Tablas!$A$1589:$H$1655,4,TRUE) -> 184.582146 | E67: =VLOOKUP($B$19,Tablas!$A$1589:$H$1655,5,TRUE) -> 168.2357623 | F67: =VLOOKUP($B$19,Tablas!$A$1589:$H$1655,6,TRUE) -> 136.456768 | G67: =VLOOKUP($B$19,Tablas!$A$1589:$H$1655,7,TRUE) -> 101.124212 | H67: =VLOOKUP($B$19,Tablas!$A$1589:$H$1655,8,TRUE) -> 85.38701033
A68: Prima para conyuge | C68: =IF($B$15=1,0,(VLOOKUP($H$19,Tablas!$A$1589:$H$1655,3,TRUE))) -> 0 | D68: =IF($B$15=1,0,(VLOOKUP($H$19,Tablas!$A$1589:$H$1655,4,TRUE))) -> 0 | E68: =IF($B$15=1,0,(VLOOKUP($H$19,Tablas!$A$1589:$H$1655,5,TRUE))) -> 0 | F68: =IF($B$15=1,0,(VLOOKUP($H$19,Tablas!$A$1589:$H$1655,6,TRUE))) -> 0 | G68: =IF($B$15=1,0,(VLOOKUP($H$19,Tablas!$A$1589:$H$1655,7,TRUE))) -> 0 | H68: =IF($B$15=1,0,(VLOOKUP($H$19,Tablas!$A$1589:$H$1655,8,TRUE))) -> 0
A69: Prima para hijo (s) | C69: =IF($B$17=0,0,(VLOOKUP($B$17,Tablas!$A$1656:$H$1658,3,TRUE))) -> 0 | D69: =IF($B$17=0,0,(VLOOKUP($B$17,Tablas!$A$1656:$H$1658,4,TRUE))) -> 0 | E69: =IF($B$17=0,0,(VLOOKUP($B$17,Tablas!$A$1656:$H$1658,5,TRUE))) -> 0 | F69: =IF($B$17=0,0,(VLOOKUP($B$17,Tablas!$A$1656:$H$1658,6,TRUE))) -> 0 | G69: =IF($B$17=0,0,(VLOOKUP($B$17,Tablas!$A$1656:$H$1658,7,TRUE))) -> 0 | H69: =IF($B$17=0,0,(VLOOKUP($B$17,Tablas!$A$1656:$H$1658,8,TRUE))) -> 0
A70: Total de Prima neta | C70: =SUM(C67:C69) -> 212.4014573 | D70: =SUM(D67:D69) -> 184.582146 | E70: 168.2357623 | F70: =SUM(F67:F69) -> 136.456768 | G70: =SUM(G67:G69) -> 101.124212 | H70: 85.38701033
A71: Ajuste por la variante con coaseguro fuera del país de residencia | C71: =IF('INGRESO DE DATOS'!$P$3,C70*-15%,0) -> 0 | D71: =IF('INGRESO DE DATOS'!$P$3,D70*-15%,0) -> 0 | E71: =IF('INGRESO DE DATOS'!$P$3,E70*-15%,0) -> 0 | F71: =IF('INGRESO DE DATOS'!$P$3,F70*-15%,0) -> 0
A72: Tarifa administrativa anual | C72: =Tablas!$Y$2 -> 57.47 | D72: =Tablas!$Y$2 -> 57.47 | E72: =Tablas!$Y$2 -> 57.47 | F72: =Tablas!$Y$2 -> 57.47 | G72: =Tablas!$Y$2 -> 57.47 | H72: =Tablas!$Y$2 -> 57.47
A73: VAT (5%) :
A74: ITBMS (7%)
A75: TOTAL de primera cuota | C75: =SUM(C70:C74) -> 269.8714573 | D75: =SUM(D70:D74) -> 242.052146 | E75: 225.7057623 | F75: =SUM(F70:F74) -> 193.926768 | G75: =SUM(G70:G74) -> 158.594212 | H75: 142.8570103
A76: Costo de Tarifa mensual de 2 a 12 | C76: =C75-C72 -> 212.4014573 | D76: =D75-D72 -> 184.582146 | E76: 168.2357623 | F76: =F75-F72 -> 136.456768 | G76: =G75-G72 -> 101.124212 | H76: 85.38701033
A77: TOTAL ANUAL | C77: =C75+(C76*11) -> 2606.287488 | D77: =D75+(D76*11) -> 2272.455752 | E77: 2076.299148 | F77: 1694.951216 | G77: 1270.960544 | H77: 1082.114124
A79: Este presupuesto solamente tiene carácter informativo y en ningún momento expresa compromiso legal para suministrarle cobertura de seguro. La emisión de una póliza de seguro Bupa está sujeta a todas las evaluaciones de riesgo por parte de Bupa y a la recepción de todos los pagos de prima requeridos.

Sheet Resumen Tarifas
A5: Cotización de Seguro Médico Internacional Global Major Health Plans Resumen de Tarifas Tarifas en US$ | Validas: 1 de enero de 2024
A13: Nombre del Asegurado Titular | B13: =+'INGRESO DE DATOS'!$C$37 -> John Doe
A15: Número de adultos en la póliza | B15: =+'INGRESO DE DATOS'!$C$39 -> 1
A17: Número de Dependientes en la póliza | B17: =+'INGRESO DE DATOS'!$C$41 -> 0 | C17: =IF('INGRESO DE DATOS'!$P$2=TRUE, "Cotización para dependiente de 24 años","") -> 
A19: Edad del Asegurado Titular | B19: =+'INGRESO DE DATOS'!$C$43 -> 29 | E19: Edad del/la conyuge | G19: =+'INGRESO DE DATOS'!$C$45 -> 18
A21: Fecha de la cotización | B21: =NOW() -> 2023-12-27T14:24:14.030
A24: BUPA ESSENTIAL FLEX 1
A25: DEDUCIBLES | B25: PLAN 1 | C25: PLAN 2 | D25: PLAN 3 | E25: PLAN 4 | F25: PLAN 5 | G25: PLAN 6
A26: En el país de residencia | B26: 250 | C26: 500 | D26: 1000 | E26: 2000 | F26: 5000 | G26: 10000
A27: Fuera del país de residencia | B27: 500 | C27: 1000 | D27: 2000 | E27: 4000 | F27: 5000 | G27: 10000
A28: TARIFAS ANUALES
A29: Costo Annual | B29: ='BUPA ESSENTIAL FLEX 1'!C38 -> 3062.0016 | C29: ='BUPA ESSENTIAL FLEX 1'!D38 -> 2670.0562 | D29: ='BUPA ESSENTIAL FLEX 1'!E38 -> 2439.0268 | E29: ='BUPA ESSENTIAL FLEX 1'!F38 -> 1988.462 | F29: ='BUPA ESSENTIAL FLEX 1'!G38 -> 1487.3236 | G29: ='BUPA ESSENTIAL FLEX 1'!H38 -> 1264.34
A30: TARIFAS SEMESTRALES
A31: Primera Cuota | B31: ='BUPA ESSENTIAL FLEX 1'!C49 -> 1604.803774 | C31: ='BUPA ESSENTIAL FLEX 1'!D49 -> 1402.951893 | D31: ='BUPA ESSENTIAL FLEX 1'!E49 -> 1283.971752 | E31: ='BUPA ESSENTIAL FLEX 1'!F49 -> 1051.93088 | F31: ='BUPA ESSENTIAL FLEX 1'!G49 -> 793.844604 | G31: ='BUPA ESSENTIAL FLEX 1'!H49 -> 679.00805
A32: Segunda Cuota | B32: ='BUPA ESSENTIAL FLEX 1'!C50 -> 1547.333774 | C32: ='BUPA ESSENTIAL FLEX 1'!D50 -> 1345.481893 | D32: ='BUPA ESSENTIAL FLEX 1'!E50 -> 1226.501752 | E32: ='BUPA ESSENTIAL FLEX 1'!F50 -> 994.46088 | F32: ='BUPA ESSENTIAL FLEX 1'!G50 -> 736.374604 | G32: ='BUPA ESSENTIAL FLEX 1'!H50 -> 621.53805
A33: Costo Annual | B33: ='BUPA ESSENTIAL FLEX 1'!C51 -> 3152.137548 | C33: ='BUPA ESSENTIAL FLEX 1'!D51 -> 2748.433786 | D33: ='BUPA ESSENTIAL FLEX 1'!E51 -> 2510.473504 | E33: ='BUPA ESSENTIAL FLEX 1'!F51 -> 2046.39176 | F33: ='BUPA ESSENTIAL FLEX 1'!G51 -> 1530.219208 | G33: ='BUPA ESSENTIAL FLEX 1'!H51 -> 1300.5461
A34: TARIFAS TRIMESTRALES
A35: Primera Cuota | B35: ='BUPA ESSENTIAL FLEX 1'!C62 -> 842.4038805 | C35: ='BUPA ESSENTIAL FLEX 1'!D62 -> 740.0081447 | D35: ='BUPA ESSENTIAL FLEX 1'!E62 -> 679.651714 | E35: ='BUPA ESSENTIAL FLEX 1'!F62 -> 561.94166 | F35: ='BUPA ESSENTIAL FLEX 1'!G62 -> 431.019253 | G35: ='BUPA ESSENTIAL FLEX 1'!H62 -> 372.7647875
A36: Tarifa trimestral ( 3 a 4) | B36: ='BUPA ESSENTIAL FLEX 1'!C63 -> 784.9338805 | C36: ='BUPA ESSENTIAL FLEX 1'!D63 -> 682.5381447 | D36: ='BUPA ESSENTIAL FLEX 1'!E63 -> 622.181714 | E36: ='BUPA ESSENTIAL FLEX 1'!F63 -> 504.47166 | F36: ='BUPA ESSENTIAL FLEX 1'!G63 -> 373.549253 | G36: ='BUPA ESSENTIAL FLEX 1'!H63 -> 315.2947875
A37: Costo Annual | B37: ='BUPA ESSENTIAL FLEX 1'!C64 -> 3197.205522 | C37: ='BUPA ESSENTIAL FLEX 1'!D64 -> 2787.622579 | D37: ='BUPA ESSENTIAL FLEX 1'!E64 -> 2546.196856 | E37: ='BUPA ESSENTIAL FLEX 1'!F64 -> 2075.35664 | F37: ='BUPA ESSENTIAL FLEX 1'!G64 -> 1551.667012 | G37: ='BUPA ESSENTIAL FLEX 1'!H64 -> 1318.64915
A38: TARIFAS MENSUALES
A39: Primera Cuota | B39: ='BUPA ESSENTIAL FLEX 1'!C75 -> 322.8702913 | C39: ='BUPA ESSENTIAL FLEX 1'!D75 -> 288.2484477 | D39: ='BUPA ESSENTIAL FLEX 1'!E75 -> 267.8408507 | E39: ='BUPA ESSENTIAL FLEX 1'!F75 -> 228.04096 | F39: ='BUPA ESSENTIAL FLEX 1'!G75 -> 183.7737347 | G39: ='BUPA ESSENTIAL FLEX 1'!H75 -> 164.07685
A40: Tarifa Mensual ( 2 a 12) | B40: ='BUPA ESSENTIAL FLEX 1'!C76 -> 265.4002913 | C40: ='BUPA ESSENTIAL FLEX 1'!D76 -> 230.7784477 | D40: ='BUPA ESSENTIAL FLEX 1'!E76 -> 210.3708507 | E40: ='BUPA ESSENTIAL FLEX 1'!F76 -> 170.57096 | F40: ='BUPA ESSENTIAL FLEX 1'!G76 -> 126.3037347 | G40: ='BUPA ESSENTIAL FLEX 1'!H76 -> 106.60685
A41: Costo Annual | B41: ='BUPA ESSENTIAL FLEX 1'!C77 -> 3242.273496 | C41: ='BUPA ESSENTIAL FLEX 1'!D77 -> 2826.811372 | D41: ='BUPA ESSENTIAL FLEX 1'!E77 -> 2581.920208 | E41: ='BUPA ESSENTIAL FLEX 1'!F77 -> 2104.32152 | F41: ='BUPA ESSENTIAL FLEX 1'!G77 -> 1573.114816 | G41: ='BUPA ESSENTIAL FLEX 1'!H77 -> 1336.7522
A44: BUPA ESSENTIAL FLEX 2
A45: DEDUCIBLES | B45: PLAN 1 | C45: PLAN 2 | D45: PLAN 3 | E45: PLAN 4 | F45: PLAN 5 | G45: PLAN 6
A46: En el país de residencia | B46: 250 | C46: 500 | D46: 1000 | E46: 2000 | F46: 5000 | G46: 10000
A47: Fuera del país de residencia | B47: 500 | C47: 1000 | D47: 2000 | E47: 4000 | F47: 5000 | G47: 10000
A48: TARIFAS ANUALES
A49: Costo Annual | B49: ='BUPA ESSENTIAL FLEX 2'!C38 -> 2462.0148 | C49: ='BUPA ESSENTIAL FLEX 2'!D38 -> 2147.0792 | D49: ='BUPA ESSENTIAL FLEX 2'!E38 -> 1962.0258 | E49: ='BUPA ESSENTIAL FLEX 2'!F38 -> 1602.2636 | F49: ='BUPA ESSENTIAL FLEX 2'!G38 -> 1202.2724 | G49: ='BUPA ESSENTIAL FLEX 2'!H38 -> 1024.1154
A50: TARIFAS SEMESTRALES
A51: Primera Cuota | B51: ='BUPA ESSENTIAL FLEX 2'!C49 -> 1295.810572 | C51: ='BUPA ESSENTIAL FLEX 1'!D69 -> 0 | D51: ='BUPA ESSENTIAL FLEX 1'!E69 -> 0 | E51: ='BUPA ESSENTIAL FLEX 1'!F69 -> 0 | F51: ='BUPA ESSENTIAL FLEX 1'!G69 -> 0 | G51: ='BUPA ESSENTIAL FLEX 1'!H69 -> 0
A52: Segunda Cuota | B52: ='BUPA ESSENTIAL FLEX 2'!C50 -> 1238.340572 | C52: ='BUPA ESSENTIAL FLEX 2'!D50 -> 1076.148738 | D52: ='BUPA ESSENTIAL FLEX 2'!E50 -> 980.846237 | E52: ='BUPA ESSENTIAL FLEX 2'!F50 -> 795.568704 | F52: ='BUPA ESSENTIAL FLEX 2'!G50 -> 589.573236 | G52: ='BUPA ESSENTIAL FLEX 2'!H50 -> 497.822381
A53: Costo Annual | B53: ='BUPA ESSENTIAL FLEX 2'!C51 -> 2534.151144 | C53: ='BUPA ESSENTIAL FLEX 2'!D51 -> 2209.767476 | D53: ='BUPA ESSENTIAL FLEX 2'!E51 -> 2019.162474 | E53: ='BUPA ESSENTIAL FLEX 2'!F51 -> 1648.607408 | F53: ='BUPA ESSENTIAL FLEX 2'!G51 -> 1236.616472 | G53: ='BUPA ESSENTIAL FLEX 2'!H51 -> 1053.114762
A54: TARIFAS TRIMESTRALES
A55: Primera Cuota | B55: ='BUPA ESSENTIAL FLEX 2'!C62 -> 685.657329 | C55: ='BUPA ESSENTIAL FLEX 2'!D62 -> 603.3804035 | D55: ='BUPA ESSENTIAL FLEX 2'!E62 -> 555.0352027 | E55: ='BUPA ESSENTIAL FLEX 2'!F62 -> 461.047328 | F55: ='BUPA ESSENTIAL FLEX 2'!G62 -> 356.549627 | G55: ='BUPA ESSENTIAL FLEX 2'!H62 -> 310.0061107
A56: Tarifa trimestral ( 3 a 4) | B56: ='BUPA ESSENTIAL FLEX 2'!C63 -> 628.187329 | C56: ='BUPA ESSENTIAL FLEX 2'!D63 -> 545.9104035 | D56: ='BUPA ESSENTIAL FLEX 2'!E63 -> 497.5652027 | E56: ='BUPA ESSENTIAL FLEX 2'!F63 -> 403.577328 | F56: ='BUPA ESSENTIAL FLEX 2'!G63 -> 299.079627 | G56: ='BUPA ESSENTIAL FLEX 2'!H63 -> 252.5361107
A57: Costo Annual | B57: ='BUPA ESSENTIAL FLEX 2'!C64 -> 2570.219316 | C57: ='BUPA ESSENTIAL FLEX 2'!D64 -> 2241.111614 | D57: ='BUPA ESSENTIAL FLEX 2'!E64 -> 2047.730811 | E57: ='BUPA ESSENTIAL FLEX 2'!F64 -> 1671.779312 | F57: ='BUPA ESSENTIAL FLEX 2'!G64 -> 1253.788508 | G57: ='BUPA ESSENTIAL FLEX 2'!H64 -> 1067.614443
A58: TARIFAS MENSUALES
A59: Primera Cuota | B59: ='BUPA ESSENTIAL FLEX 2'!C75 -> 269.8714573 | C59: ='BUPA ESSENTIAL FLEX 2'!D75 -> 242.052146 | D59: ='BUPA ESSENTIAL FLEX 2'!E75 -> 225.7057623 | E59: ='BUPA ESSENTIAL FLEX 2'!F75 -> 193.926768 | F59: ='BUPA ESSENTIAL FLEX 2'!G75 -> 158.594212 | G59: ='BUPA ESSENTIAL FLEX 2'!H75 -> 142.8570103
A60: Tarifa Mensual ( 2 a 12) | B60: ='BUPA ESSENTIAL FLEX 2'!C76 -> 212.4014573 | C60: ='BUPA ESSENTIAL FLEX 2'!D76 -> 184.582146 | D60: ='BUPA ESSENTIAL FLEX 2'!E76 -> 168.2357623 | E60: ='BUPA ESSENTIAL FLEX 2'!F76 -> 136.456768 | F60: ='BUPA ESSENTIAL FLEX 2'!G76 -> 101.124212 | G60: ='BUPA ESSENTIAL FLEX 2'!H76 -> 85.38701033
A61: Costo Annual | B61: ='BUPA ESSENTIAL FLEX 2'!C77 -> 2606.287488 | C61: ='BUPA ESSENTIAL FLEX 2'!D77 -> 2272.455752 | D61: ='BUPA ESSENTIAL FLEX 2'!E77 -> 2076.299148 | E61: ='BUPA ESSENTIAL FLEX 2'!F77 -> 1694.951216 | F61: ='BUPA ESSENTIAL FLEX 2'!G77 -> 1270.960544 | G61: ='BUPA ESSENTIAL FLEX 2'!H77 -> 1082.114124
A64: Este presupuesto solamente tiene carácter informativo y en ningún momento expresa compromiso legal para suministrarle cobertura de seguro. La emisión de una póliza de seguro Bupa está sujeta a todas las evaluaciones de riesgo por parte de Bupa y a la recepción de todos los pagos de prima requeridos. Una tarifa administrativa de US$75 se cargará automáticamente al primer pago. *Basado en un modo de pago anual

Sheet Tablas (hidden)
A2: BUPA FLEX 1 | I2: FACTOR MENSUAL: | K2: 0.08833333333 | M2: Descuento de 24 años | N2: ='INGRESO DE DATOS'!P30 -> 1 | O2: Flex 1 | P2: Flex 2 | U2: Impuesto (14.94%) | X2: =14.94/100+1 -> 1.1494 | Y2: =X2*50 -> 57.47
A3: TARIFAS ANUALES | I3: FACTOR TRIMESTRAL: | K3: 0.26125 | M3: Descuento de producto (%) | O3: ='INGRESO DE DATOS'!O39 -> 0 | P3: ='INGRESO DE DATOS'!P39 -> 0
I4: FACTOR SEMIANUAL: | K4: 0.515 | M4: Factor para el descuento combinado | O4: ='INGRESO DE DATOS'!O47 -> 1 | P4: ='INGRESO DE DATOS'!P47 -> 1
A5: EDAD | C5: 250 | D5: 500 | E5: 1000 | F5: 2000 | G5: 5000 | H5: 10000 | J5: TARIFAS BASE | R5: TARIFAS BASE CON DESCUENTO
A6: 18 | C6: =R6*$X$2 -> 2502.2438 | D6: 2176.9636 | E6: 1982.715 | F6: 1533.2996 | G6: 1168.9398 | H6: 987.3346 | J6: 2177 | K6: 1894 | L6: 1725 | M6: 1334 | N6: 1017 | O6: 859 | R6: =J6*$O$4 -> 2177 | S6: =K6*$O$4 -> 1894 | T6: 1725 | U6: 1334 | V6: 1017 | W6: 859
A7: 19 | C7: =R7*$X$2 -> 2542.4728 | D7: =S7*$X$2 -> 2213.7444 | E7: =T7*$X$2 -> 2020.6452 | F7: =U7*$X$2 -> 1565.4828 | G7: =V7*$X$2 -> 1189.629 | H7: =W7*$X$2 -> 1004.5756 | J7: 2212 | K7: 1926 | L7: 1758 | M7: 1362 | N7: 1035 | O7: 874 | R7: =J7*$O$4 -> 2212 | S7: =K7*$O$4 -> 1926 | T7: =L7*$O$4 -> 1758 | U7: =M7*$O$4 -> 1362 | V7: =N7*$O$4 -> 1035 | W7: =O7*$O$4 -> 874
A8: 20 | C8: 2589.5982 | D8: 2249.3758 | E8: 2050.5296 | F8: 1602.2636 | G8: 1212.617 | H8: 1022.966 | J8: 2253 | K8: 1957 | L8: 1784 | M8: 1394 | N8: 1055 | O8: 890 | R8: 2253 | S8: 1957 | T8: 1784 | U8: 1394 | V8: 1055 | W8: 890
A9: 21 | C9: 2628.6778 | D9: 2289.6048 | E9: 2083.8622 | F9: 1634.4468 | G9: 1234.4556 | H9: 1041.3564 | J9: 2287 | K9: 1992 | L9: 1813 | M9: 1422 | N9: 1074 | O9: 906 | R9: 2287 | S9: 1992 | T9: 1813 | U9: 1422 | V9: 1074 | W9: 906
A10: 22 | C10: 2673.5044 | D10: 2330.9832 | E10: 2120.643 | F10: 1666.63 | G10: 1256.2942 | H10: 1060.8962 | J10: 2326 | K10: 2028 | L10: 1845 | M10: 1450 | N10: 1093 | O10: 923 | R10: 2326 | S10: 2028 | T10: 1845 | U10: 1450 | V10: 1093 | W10: 923
A11: 23 | C11: 2720.6298 | D11: 2366.6146 | E11: 2158.5732 | F11: 1706.859 | G11: 1280.4316 | H11: 1080.436 | J11: 2367 | K11: 2059 | L11: 1878 | M11: 1485 | N11: 1114 | O11: 940 | R11: 2367 | S11: 2059 | T11: 1878 | U11: 1485 | V11: 1114 | W11: 940
A12: 24 | C12: 2766.6058 | D12: 2405.6942 | E12: 2194.2046 | F12: 1741.341 | G12: 1302.2702 | H12: 1098.8264 | J12: 2407 | K12: 2093 | L12: 1909 | M12: 1515 | N12: 1133 | O12: 956 | R12: 2407 | S12: 2093 | T12: 1909 | U12: 1515 | V12: 1133 | W12: 956
A13: 25 | C13: 2806.8348 | D13: 2440.1762 | E13: 2228.6866 | F13: 1775.823 | G13: 1328.7064 | H13: 1121.8144 | J13: 2442 | K13: 2123 | L13: 1939 | M13: 1545 | N13: 1156 | O13: 976 | R13: 2442 | S13: 2123 | T13: 1939 | U13: 1545 | V13: 1156 | W13: 976
A14: 26 | C14: 2851.6614 | D14: 2481.5546 | E14: 2264.318 | F14: 1813.7532 | G14: 1351.6944 | H14: 1141.3542 | J14: 2481 | K14: 2159 | L14: 1970 | M14: 1578 | N14: 1176 | O14: 993 | R14: 2481 | S14: 2159 | T14: 1970 | U14: 1578 | V14: 1176 | W14: 993
A15: 27 | C15: 2899.9362 | D15: 2520.6342 | E15: 2298.8 | F15: 1842.4882 | G15: 1372.3836 | H15: 1157.4458 | J15: 2523 | K15: 2193 | L15: 2000 | M15: 1603 | N15: 1194 | O15: 1007 | R15: 2523 | S15: 2193 | T15: 2000 | U15: 1603 | V15: 1194 | W15: 1007
A16: 28 | C16: 2950.5098 | D16: 2566.6102 | E16: 2337.8796 | F16: 1889.6136 | G16: 1403.4174 | H16: 1183.882 | J16: 2567 | K16: 2233 | L16: 2034 | M16: 1644 | N16: 1221 | O16: 1030 | R16: 2567 | S16: 2233 | T16: 2034 | U16: 1644 | V16: 1221 | W16: 1030
A17: 29 | C17: 3004.5316 | D17: 2612.5862 | E17: 2381.5568 | F17: 1930.992 | G17: 1429.8536 | H17: 1206.87 | J17: 2614 | K17: 2273 | L17: 2072 | M17: 1680 | N17: 1244 | O17: 1050 | R17: 2614 | S17: 2273 | T17: 2072 | U17: 1680 | V17: 1244 | W17: 1050
A18: 30 | C18: 3056.2546 | D18: 2653.9646 | E18: 2420.6364 | F18: 1974.6692 | G18: 1462.0368 | H18: 1233.3062 | J18: 2659 | K18: 2309 | L18: 2106 | M18: 1718 | N18: 1272 | O18: 1073 | R18: 2659 | S18: 2309 | T18: 2106 | U18: 1718 | V18: 1272 | W18: 1073
A19: 31 | C19: 3105.6788 | D19: 2705.6876 | E19: 2465.463 | F19: 2020.6452 | G19: 1487.3236 | H19: 1253.9954 | J19: 2702 | K19: 2354 | L19: 2145 | M19: 1758 | N19: 1294 | O19: 1091 | R19: 2702 | S19: 2354 | T19: 2145 | U19: 1758 | V19: 1294 | W19: 1091
A20: 32 | C20: 3157.4018 | D20: 2748.2154 | E20: 2503.3932 | F20: 2066.6212 | G20: 1518.3574 | H20: 1281.581 | J20: 2747 | K20: 2391 | L20: 2178 | M20: 1798 | N20: 1321 | O20: 1115 | R20: 2747 | S20: 2391 | T20: 2178 | U20: 1798 | V20: 1321 | W20: 1115
A21: 33 | C21: 3242.4574 | D21: 2821.777 | E21: 2575.8054 | F21: 2127.5394 | G21: 1566.6322 | H21: 1322.9594 | J21: 2821 | K21: 2455 | L21: 2241 | M21: 1851 | N21: 1363 | O21: 1151 | R21: 2821 | S21: 2455 | T21: 2241 | U21: 1851 | V21: 1363 | W21: 1151
A22: 34 | C22: 3328.6624 | D22: 2899.9362 | E22: 2643.62 | F22: 2187.3082 | G22: 1608.0106 | H22: 1356.292 | J22: 2896 | K22: 2523 | L22: 2300 | M22: 1903 | N22: 1399 | O22: 1180 | R22: 2896 | S22: 2523 | T22: 2300 | U22: 1903 | V22: 1399 | W22: 1180
A23: 35 | C23: 3418.3156 | D23: 2972.3484 | E23: 2711.4346 | F23: 2250.5252 | G23: 1653.9866 | H23: 1395.3716 | J23: 2974 | K23: 2586 | L23: 2359 | M23: 1958 | N23: 1439 | O23: 1214 | R23: 2974 | S23: 2586 | T23: 2359 | U23: 1958 | V23: 1439 | W23: 1214
A24: 36 | C24: 3502.2218 | D24: 3050.5076 | E24: 2779.2492 | F24: 2314.8916 | G24: 1698.8132 | H24: 1434.4512 | J24: 3047 | K24: 2654 | L24: 2418 | M24: 2014 | N24: 1478 | O24: 1248 | R24: 3047 | S24: 2654 | T24: 2418 | U24: 2014 | V24: 1478 | W24: 1248
A25: 37 | C25: 3587.2774 | D25: 3121.7704 | E25: 2849.3626 | F25: 2380.4074 | G25: 1742.4904 | H25: 1468.9332 | J25: 3121 | K25: 2716 | L25: 2479 | M25: 2071 | N25: 1516 | O25: 1278 | R25: 3121 | S25: 2716 | T25: 2479 | U25: 2071 | V25: 1516 | W25: 1278
A26: 38 | C26: 3679.2294 | D26: 3196.4814 | E26: 2918.3266 | F26: 2448.222 | G26: 1787.317 | H26: 1506.8634 | J26: 3201 | K26: 2781 | L26: 2539 | M26: 2130 | N26: 1555 | O26: 1311 | R26: 3201 | S26: 2781 | T26: 2539 | U26: 2130 | V26: 1555 | W26: 1311
A27: 39 | C27: 3764.285 | D27: 3274.6406 | E27: 2986.1412 | F27: 2514.8872 | G27: 1833.293 | H27: 1545.943 | J27: 3275 | K27: 2849 | L27: 2598 | M27: 2188 | N27: 1595 | O27: 1345 | R27: 3275 | S27: 2849 | T27: 2598 | U27: 2188 | V27: 1595 | W27: 1345
A28: 40 | C28: 3860.8346 | D28: 3352.7998 | E28: 3056.2546 | F28: 2580.403 | G28: 1879.269 | H28: 1585.0226 | J28: 3359 | K28: 2917 | L28: 2659 | M28: 2245 | N28: 1635 | O28: 1379 | R28: 3359 | S28: 2917 | T28: 2659 | U28: 2245 | V28: 1635 | W28: 1379
A29: 41 | C29: 4075.7724 | D29: 3542.4508 | E29: 3235.561 | F29: 2736.7214 | G29: 1986.1632 | H29: 1675.8252 | J29: 3546 | K29: 3082 | L29: 2815 | M29: 2381 | N29: 1728 | O29: 1458 | R29: 3546 | S29: 3082 | T29: 2815 | U29: 2381 | V29: 1728 | W29: 1458
A30: 42 | C30: 4167.7244 | D30: 3621.7594 | E30: 3302.2262 | F30: 2805.6854 | G30: 2032.1392 | H30: 1714.9048 | J30: 3626 | K30: 3151 | L30: 2873 | M30: 2441 | N30: 1768 | O30: 1492 | R30: 3626 | S30: 3151 | T30: 2873 | U30: 2441 | V30: 1768 | W30: 1492
A31: 43 | C31: 4330.9392 | D31: 3770.032 | E31: 3436.706 | F31: 2929.8206 | G31: 2122.9418 | H31: 1791.9146 | J31: 3768 | K31: 3280 | L31: 2990 | M31: 2549 | N31: 1847 | O31: 1559 | R31: 3768 | S31: 3280 | T31: 2990 | U31: 2549 | V31: 1847 | W31: 1559
A32: 44 | C32: 4496.4528 | D32: 3909.1094 | E32: 3565.4388 | F32: 3050.5076 | G32: 2209.1468 | H32: 1864.3268 | J32: 3912 | K32: 3401 | L32: 3102 | M32: 2654 | N32: 1922 | O32: 1622 | R32: 3912 | S32: 3401 | T32: 3102 | U32: 2654 | V32: 1922 | W32: 1622
A33: 45 | C33: 4664.2652 | D33: 4052.7844 | E33: 3697.6198 | F33: 3175.7922 | G33: 2293.053 | H33: 1935.5896 | J33: 4058 | K33: 3526 | L33: 3217 | M33: 2763 | N33: 1995 | O33: 1684 | R33: 4058 | S33: 3526 | T33: 3217 | U33: 2763 | V33: 1995 | W33: 1684
A34: 46 | C34: 4827.48 | D34: 4197.6088 | E34: 3829.8008 | F34: 3297.6286 | G34: 2380.4074 | H34: 2009.1512 | J34: 4200 | K34: 3652 | L34: 3332 | M34: 2869 | N34: 2071 | O34: 1748 | R34: 4200 | S34: 3652 | T34: 3332 | U34: 2869 | V34: 2071 | W34: 1748
A35: 47 | C35: 4990.6948 | D35: 4341.2838 | E35: 3959.683 | F35: 3422.9132 | G35: 2466.6124 | H35: 2081.5634 | J35: 4342 | K35: 3777 | L35: 3445 | M35: 2978 | N35: 2146 | O35: 1811 | R35: 4342 | S35: 3777 | T35: 3445 | U35: 2978 | V35: 2146 | W35: 1811
A36: 48 | C36: 5168.8518 | D36: 4494.154 | E36: 4097.611 | F36: 3553.9448 | G36: 2555.1162 | H36: 2156.2744 | J36: 4497 | K36: 3910 | L36: 3565 | M36: 3092 | N36: 2223 | O36: 1876 | R36: 4497 | S36: 3910 | T36: 3565 | U36: 3092 | V36: 2223 | W36: 1876
A37: 49 | C37: 5347.0088 | D37: 4649.323 | E37: 4237.8378 | F37: 3681.5282 | G37: 2645.9188 | H37: 2232.1348 | J37: 4652 | K37: 4045 | L37: 3687 | M37: 3203 | N37: 2302 | O37: 1942 | R37: 4652 | S37: 4045 | T37: 3687 | U37: 3203 | V37: 2302 | W37: 1942
A38: 50 | C38: 5519.4188 | D38: 4799.8944 | E38: 4373.467 | F38: 3812.5598 | G38: 2734.4226 | H38: 2310.294 | J38: 4802 | K38: 4176 | L38: 3805 | M38: 3317 | N38: 2379 | O38: 2010 | R38: 4802 | S38: 4176 | T38: 3805 | U38: 3317 | V38: 2379 | W38: 2010
A39: 51 | C39: =R39*$X$2 -> 5876.8822 | D39: =S39*$X$2 -> 5111.3818 | E39: =T39*$X$2 -> 4660.817 | F39: =U39*$X$2 -> 4070.0254 | G39: =V39*$X$2 -> 2919.476 | H39: 2460.8654 | J39: 5113 | K39: 4447 | L39: 4055 | M39: 3541 | N39: 2540 | O39: 2141 | R39: 5113 | S39: 4447 | T39: 4055 | U39: 3541 | V39: 2540 | W39: 2141
A40: 52 | C40: 6056.1886 | D40: 5265.4014 | E40: 4804.492 | F40: 4197.6088 | G40: 3011.428 | H40: 2540.174 | J40: 5269 | K40: 4581 | L40: 4180 | M40: 3652 | N40: 2620 | O40: 2210 | R40: 5269 | S40: 4581 | T40: 4180 | U40: 3652 | V40: 2620 | W40: 2210
A41: 53 | C41: 6273.4252 | D41: 5457.3512 | E41: 4974.6032 | F41: 4366.5706 | G41: 3122.9198 | H41: 2634.4248 | J41: 5458 | K41: 4748 | L41: 4328 | M41: 3799 | N41: 2717 | O41: 2292 | R41: 5458 | S41: 4748 | T41: 4328 | U41: 3799 | V41: 2717 | W41: 2292
A42: 54 | C42: 6490.6618 | D42: 5638.9564 | E42: 5145.8638 | F42: 4527.4866 | G42: 3234.4116 | H42: 2728.6756 | J42: 5647 | K42: 4906 | L42: 4477 | M42: 3939 | N42: 2814 | O42: 2374 | R42: 5647 | S42: 4906 | T42: 4477 | U42: 3939 | V42: 2814 | W42: 2374
A43: 55 | C43: 6699.8526 | D43: 5829.7568 | E43: 5311.3774 | F43: 4689.552 | G43: 3345.9034 | H43: 2824.0758 | J43: 5829 | K43: 5072 | L43: 4621 | M43: 4080 | N43: 2911 | O43: 2457 | R43: 5829 | S43: 5072 | T43: 4621 | U43: 4080 | V43: 2911 | W43: 2457
A44: 56 | C44: 6915.9398 | D44: 6011.362 | E44: 5482.638 | F44: 4851.6174 | G44: 3459.694 | H44: 2917.1772 | J44: 6017 | K44: 5230 | L44: 4770 | M44: 4221 | N44: 3010 | O44: 2538 | R44: 6017 | S44: 5230 | T44: 4770 | U44: 4221 | V44: 3010 | W44: 2538
A45: 57 | C45: 7128.5788 | D45: 6198.7142 | E45: 5652.7492 | F45: 5012.5334 | G45: 3567.7376 | H45: 3010.2786 | J45: 6202 | K45: 5393 | L45: 4918 | M45: 4361 | N45: 3104 | O45: 2619 | R45: 6202 | S45: 5393 | T45: 4918 | U45: 4361 | V45: 3104 | W45: 2619
A46: 58 | C46: 7375.6998 | D46: 6413.652 | E46: 5832.0556 | F46: 5229.77 | G46: 3710.2632 | H46: 3130.9656 | J46: 6417 | K46: 5580 | L46: 5074 | M46: 4550 | N46: 3228 | O46: 2724 | R46: 6417 | S46: 5580 | T46: 5074 | U46: 4550 | V46: 3228 | W46: 2724
A47: 59 | C47: 7621.6714 | D47: 6629.7392 | E47: 6009.0632 | F47: 5441.2596 | G47: 3848.1912 | H47: 3245.9056 | J47: 6631 | K47: 5768 | L47: 5228 | M47: 4734 | N47: 3348 | O47: 2824 | R47: 6631 | S47: 5768 | T47: 5228 | U47: 4734 | V47: 3348 | W47: 2824
A48: 60 | C48: 7867.643 | D48: 6841.2288 | E48: 6187.2202 | F48: 5652.7492 | G48: 3993.0156 | H48: 3367.742 | J48: 6845 | K48: 5952 | L48: 5383 | M48: 4918 | N48: 3474 | O48: 2930 | R48: 6845 | S48: 5952 | T48: 5383 | U48: 4918 | V48: 3474 | W48: 2930
A49: 61 | C49: 8294.0704 | D49: 7213.6344 | E49: 6556.1776 | F49: 5952.7426 | G49: 4206.804 | H49: 3549.3472 | J49: 7216 | K49: 6276 | L49: 5704 | M49: 5179 | N49: 3660 | O49: 3088 | R49: 7216 | S49: 6276 | T49: 5704 | U49: 5179 | V49: 3660 | W49: 3088
A50: 62 | C50: 8673.3724 | D50: 7538.9146 | E50: 6873.412 | F50: 6225.1504 | G50: 4393.0068 | H50: 3704.5162 | J50: 7546 | K50: 6559 | L50: 5980 | M50: 5416 | N50: 3822 | O50: 3223 | R50: 7546 | S50: 6559 | T50: 5980 | U50: 5416 | V50: 3822 | W50: 3223
A51: 63 | C51: 9112.4432 | D51: 7927.4118 | E51: 7227.4272 | F51: 6544.6836 | G51: 4624.0362 | H51: 3902.213 | J51: 7928 | K51: 6897 | L51: 6288 | M51: 5694 | N51: 4023 | O51: 3395 | R51: 7928 | S51: 6897 | T51: 6288 | U51: 5694 | V51: 4023 | W51: 3395
A52: 64 | C52: 9637.719 | D52: 8384.873 | E52: 7646.9582 | F52: 6917.0892 | G52: 4889.5476 | H52: 4126.346 | J52: 8385 | K52: 7295 | L52: 6653 | M52: 6018 | N52: 4254 | O52: 3590 | R52: 8385 | S52: 7295 | T52: 6653 | U52: 6018 | V52: 4254 | W52: 3590
A53: 65 | C53: 10271.0384 | D53: 8929.6886 | E53: 8141.2002 | F53: 7435.4686 | G53: 5232.0688 | H53: 4415.9948 | J53: 8936 | K53: 7769 | L53: 7083 | M53: 6469 | N53: 4552 | O53: 3842 | R53: 8936 | S53: 7769 | T53: 7083 | U53: 6469 | V53: 4552 | W53: 3842
A54: 66 | C54: 11008.9532 | D54: 9576.8008 | E54: 8729.693 | F54: 8029.7084 | G54: 5641.2552 | H54: 4758.516 | J54: 9578 | K54: 8332 | L54: 7595 | M54: 6986 | N54: 4908 | O54: 4140 | R54: 9578 | S54: 8332 | T54: 7595 | U54: 6986 | V54: 4908 | W54: 4140
A55: 67 | C55: 11887.0948 | D55: 10335.4048 | E55: 9429.6776 | F55: 8674.5218 | G55: 6094.1188 | H55: 5141.2662 | J55: 10342 | K55: 8992 | L55: 8204 | M55: 7547 | N55: 5302 | O55: 4473 | R55: 10342 | S55: 8992 | T55: 8204 | U55: 7547 | V55: 5302 | W55: 4473
A56: 68 | C56: 12899.7162 | D56: 11215.8452 | E56: 10227.3612 | F56: 9407.839 | G56: 6603.303 | H56: 5569.9924 | J56: 11223 | K56: 9758 | L56: 8898 | M56: 8185 | N56: 5745 | O56: 4846 | R56: 11223 | S56: 9758 | T56: 8898 | U56: 8185 | V56: 5745 | W56: 4846
A57: 69 | C57: 14072.1042 | D57: 12238.8112 | E57: 11160.674 | F57: 10276.7854 | G57: 7213.6344 | H57: 6086.073 | J57: 12243 | K57: 10648 | L57: 9710 | M57: 8941 | N57: 6276 | O57: 5295 | R57: 12243 | S57: 10648 | T57: 9710 | U57: 8941 | V57: 6276 | W57: 5295
A58: 70 | C58: 15437.5914 | D58: 13426.1414 | E58: 12133.0664 | F58: 11433.0818 | G58: 7974.5372 | H58: 6728.5876 | J58: 13431 | K58: 11681 | L58: 10556 | M58: 9947 | N58: 6938 | O58: 5854 | R58: 13431 | S58: 11681 | T58: 10556 | U58: 9947 | V58: 6938 | W58: 5854
A59: 71 | C59: 16998.4766 | D59: 14781.284 | E59: 13479.0138 | F59: 12589.3782 | G59: 8786.0136 | H59: 7412.4806 | J59: 14789 | K59: 12860 | L59: 11727 | M59: 10953 | N59: 7644 | O59: 6449 | R59: 14789 | S59: 12860 | T59: 11727 | U59: 10953 | V59: 7644 | W59: 6449
A60: 72 | C60: 18807.6322 | D60: 16357.1114 | E60: 14912.3156 | F60: 13936.475 | G60: 9722.7746 | H60: 8202.1184 | J60: 16363 | K60: 14231 | L60: 12974 | M60: 12125 | N60: 8459 | O60: 7136 | R60: 16363 | S60: 14231 | T60: 12974 | U60: 12125 | V60: 8459 | W60: 7136
A61: 73 | C61: 20890.345 | D61: 18163.9682 | E61: 16559.4058 | F61: 15465.177 | G61: 10792.866 | H61: 9104.3974 | J61: 18175 | K61: 15803 | L61: 14407 | M61: 13455 | N61: 9390 | O61: 7921 | R61: 18175 | S61: 15803 | T61: 14407 | U61: 13455 | V61: 9390 | W61: 7921
A62: 74 | C62: 23289.1428 | D62: 20246.681 | E62: 18460.5134 | F62: 17244.4482 | G62: 12033.0686 | H62: 10151.5008 | J62: 20262 | K62: 17615 | L62: 16061 | M62: 15003 | N62: 10469 | O62: 8832 | R62: 20262 | S62: 17615 | T62: 16061 | U62: 15003 | V62: 10469 | W62: 8832
A63: 75 | C63: 26039.657 | D63: 22644.3294 | E63: 20559.3178 | F63: 19401.872 | G63: 13504.3006 | H63: 11395.1516 | J63: 22655 | K63: 19701 | L63: 17887 | M63: 16880 | N63: 11749 | O63: 9914 | R63: 22655 | S63: 19701 | T63: 17887 | U63: 16880 | V63: 11749 | W63: 9914
A64: 76 | C64: 29199.3576 | D64: 25387.9472 | E64: 23130.5256 | F64: 21756.9926 | G64: 15142.1956 | H64: 12776.7304 | J64: 25404 | K64: 22088 | L64: 20124 | M64: 18929 | N64: 13174 | O64: 11116 | R64: 25404 | S64: 22088 | T64: 20124 | U64: 18929 | V64: 13174 | W64: 11116
A65: 77 | C65: 32788.9338 | D65: 28514.3152 | E65: 25998.2786 | F65: 24435.0946 | G65: 17004.2236 | H65: 14347.9602 | J65: 28527 | K65: 24808 | L65: 22619 | M65: 21259 | N65: 14794 | O65: 12483 | R65: 28527 | S65: 24808 | T65: 22619 | U65: 21259 | V65: 14794 | W65: 12483
A66: 78 | C66: 36841.7182 | D66: 32037.2262 | E66: 29210.8516 | F66: 27453.419 | G66: 19109.9244 | H66: 16121.4844 | J66: 32053 | K66: 27873 | L66: 25414 | M66: 23885 | N66: 16626 | O66: 14026 | R66: 32053 | S66: 27873 | T66: 25414 | U66: 23885 | V66: 16626 | W66: 14026
A67: 79 | C67: 41397.9398 | D67: 35996.9092 | E67: 32824.5652 | F67: 30848.7466 | G67: 21468.4932 | H67: 18111.0958 | J67: 36017 | K67: 31318 | L67: 28558 | M67: 26839 | N67: 18678 | O67: 15757 | R67: 36017 | S67: 31318 | T67: 28558 | U67: 26839 | V67: 18678 | W67: 15757
A68: 80 | C68: 46843.797 | D68: 40734.736 | E68: 37139.4128 | F68: 34902.6804 | G68: 24290.2702 | H68: 20492.6526 | J68: 40755 | K68: 35440 | L68: 32312 | M68: 30366 | N68: 21133 | O68: 17829 | R68: 40755 | S68: 35440 | T68: 32312 | U68: 30366 | V68: 21133 | W68: 17829
A69: 81 | C69: 46843.797 | D69: 40734.736 | E69: 37139.4128 | F69: 34902.6804 | G69: 24290.2702 | H69: 20492.6526 | J69: 40755 | K69: 35440 | L69: 32312 | M69: 30366 | N69: 21133 | O69: 17829 | R69: 40755 | S69: 35440 | T69: 32312 | U69: 30366 | V69: 21133 | W69: 17829
A70: 82 | C70: 46843.797 | D70: 40734.736 | E70: 37139.4128 | F70: 34902.6804 | G70: 24290.2702 | H70: 20492.6526 | J70: 40755 | K70: 35440 | L70: 32312 | M70: 30366 | N70: 21133 | O70: 17829 | R70: 40755 | S70: 35440 | T70: 32312 | U70: 30366 | V70: 21133 | W70: 17829
A71: 83 | C71: 46843.797 | D71: 40734.736 | E71: 37139.4128 | F71: 34902.6804 | G71: 24290.2702 | H71: =W71*$X$2 -> 20492.6526 | J71: 40755 | K71: 35440 | L71: 32312 | M71: 30366 | N71: 21133 | O71: 17829 | R71: =J71*$O$4 -> 40755 | S71: =K71*$O$4 -> 35440 | T71: =L71*$O$4 -> 32312 | U71: =M71*$O$4 -> 30366 | V71: =N71*$O$4 -> 21133 | W71: =O71*$O$4 -> 17829
A72: 84 | B72: o más | C72: 46843.797 | D72: 40734.736 | E72: 37139.4128 | F72: 34902.6804 | G72: 24290.2702 | H72: 20492.6526 | J72: 40755 | K72: 35440 | L72: 32312 | M72: 30366 | N72: 21133 | O72: 17829 | R72: 40755 | S72: 35440 | T72: 32312 | U72: 30366 | V72: 21133 | W72: 17829
A73: 1 | B73: Hijo | C73: 1279.2822 | D73: 1113.7686 | E73: 1013.7708 | F73: 599.9868 | G73: 504.5866 | H73: 427.5768 | J73: 1113 | K73: 969 | L73: 882 | M73: 522 | N73: 439 | O73: 372 | R73: 1113 | S73: 969 | T73: 882 | U73: 522 | V73: 439 | W73: 372
A74: 2 | B74: Hijos | C74: 2153.9756 | D74: 1875.8208 | E74: 1710.3072 | F74: 890.785 | G74: 789.6378 | H74: 666.652 | J74: 1874 | K74: 1632 | L74: 1488 | M74: 775 | N74: 687 | O74: 580 | R74: 1874 | S74: 1632 | T74: 1488 | U74: 775 | V74: 687 | W74: 580
A75: 3 | B75: Hijos o más | C75: 3163.1488 | D75: 2749.3648 | E75: 2505.692 | F75: 1279.2822 | G75: 1150.5494 | H75: 968.9442 | J75: 2752 | K75: 2392 | L75: 2180 | M75: 1113 | N75: 1001 | O75: 843 | R75: 2752 | S75: 2392 | T75: 2180 | U75: 1113 | V75: 1001 | W75: 843
A77: BUPA GLOBAL ELITE - MENSUALES
A79: EDAD | C79: 1000 | D79: 2000 | E79: 3500
A80: 18 | C80: =C6*$K$2 -> 221.0315357 | D80: =D6*$K$2 -> 192.2984513 | E80: 175.139825 | F80: 135.4414647 | G80: 103.256349 | H80: 87.21455633
A81: 19 | C81: =C7*$K$2 -> 224.5850973 | D81: 195.547422 | E81: 178.490326 | F81: 138.284314 | G81: 105.083895 | H81: 88.73751133
A82: 20 | C82: =C8*$K$2 -> 228.747841 | D82: 198.6948623 | E82: 181.1301147 | F82: 141.5332847 | G82: 107.1145017 | H82: 90.36199667
A83: 21 | C83: =C9*$K$2 -> 232.1998723 | D83: 202.248424 | E83: 184.0744943 | F83: 144.376134 | G83: 109.043578 | H83: 91.986482
A84: 22 | C84: =C10*$K$2 -> 236.1595553 | D84: 205.903516 | E84: 187.323465 | F84: 147.2189833 | G84: 110.9726543 | H84: 93.71249767
A85: 23 | C85: =C11*$K$2 -> 240.322299 | D85: 209.0509563 | E85: 190.673966 | F85: 150.772545 | G85: 113.1047913 | H85: 95.43851333
A86: 24 | C86: =C12*$K$2 -> 244.3835123 | D86: 212.5029877 | E86: 193.8214063 | F86: 153.818455 | G86: 115.0338677 | H86: 97.06299867
A87: 25 | C87: =C13*$K$2 -> 247.937074 | D87: 215.5488977 | E87: 196.8673163 | F87: 156.864365 | G87: 117.3690653 | H87: 99.09360533
A88: 26 | C88: =C14*$K$2 -> 251.896757 | D88: 219.2039897 | E88: 200.0147567 | F88: 160.214866 | G88: 119.399672 | H88: 100.819621
A89: 27 | C89: =C15*$K$2 -> 256.161031 | D89: 222.656021 | E89: 203.0606667 | F89: 162.7531243 | G89: 121.227218 | H89: 102.2410457
A90: 28 | C90: =C16*$K$2 -> 260.6283657 | D90: 226.7172343 | E90: 206.512698 | F90: 166.915868 | G90: 123.968537 | H90: 104.5762433
A91: 29 | C91: =C17*$K$2 -> 265.4002913 | D91: 230.7784477 | E91: 210.3708507 | F91: 170.57096 | G91: 126.3037347 | H91: 106.60685
A92: 30 | C92: =C18*$K$2 -> 269.9691563 | D92: 234.4335397 | E92: 213.822882 | F92: 174.4291127 | G92: 129.146584 | H92: 108.9420477
A93: 31 | C93: =C19*$K$2 -> 274.3349607 | D93: 239.0024047 | E93: 217.782565 | F93: 178.490326 | G93: 131.3802513 | H93: 110.7695937
A94: 32 | C94: =C20*$K$2 -> 278.9038257 | D94: 242.759027 | E94: 221.133066 | F94: 182.5515393 | G94: 134.1215703 | H94: 113.2063217
A95: 33 | C95: =C21*$K$2 -> 286.4170703 | D95: 249.2569683 | E95: 227.529477 | F95: 187.932647 | G95: 138.3858443 | H95: 116.8614137
A96: 34 | C96: =C22*$K$2 -> 294.0318453 | D96: 256.161031 | E96: 233.5197667 | F96: 193.2122243 | G96: 142.0409363 | H96: 119.8057933
A97: 35 | C97: =C23*$K$2 -> 301.9512113 | D97: 262.557442 | E97: 239.5100563 | F97: 198.7963927 | G97: 146.1021497 | H97: 123.2578247
A98: 36 | C98: =C24*$K$2 -> 309.3629257 | D98: 269.4615047 | E98: 245.500346 | F98: 204.4820913 | G98: 150.0618327 | H98: 126.709856
A99: 37 | C99: =C25*$K$2 -> 316.8761703 | D99: 275.7563853 | E99: 251.6936963 | F99: 210.2693203 | G99: 153.9199853 | H99: 129.755766
A100: 38 | C100: =C26*$K$2 -> 324.998597 | D100: 282.355857 | E100: 257.7855163 | F100: 216.25961 | G100: 157.8796683 | H100: 133.106267
A101: 39 | C101: =C27*$K$2 -> 332.5118417 | D101: 289.2599197 | E101: 263.775806 | F101: 222.1483693 | G101: 161.9408817 | H101: 136.5582983
A102: 40 | C102: =C28*$K$2 -> 341.0403897 | D102: 296.1639823 | E102: 269.9691563 | F102: 227.9355983 | G102: 166.002095 | H102: 140.0103297
A103: 41 | C103: =C29*$K$2 -> 360.026562 | D103: 312.9164873 | E103: 285.8078883 | F103: 241.7437237 | G103: 175.444416 | H103: 148.031226
A104: 42 | C104: =C30*$K$2 -> 368.1489887 | D104: 319.9220803 | E104: 291.6966477 | F104: 247.8355437 | G104: 179.5056293 | H104: 151.4832573
A105: 43 | C105: =C31*$K$2 -> 382.566296 | D105: 333.0194933 | E105: 303.5756967 | F105: 258.8008197 | G105: 187.5265257 | H105: 158.2857897
A106: 44 | C106: =C32*$K$2 -> 397.186664 | D106: 345.3046637 | E106: 314.947094 | F106: 269.4615047 | G106: 195.1413007 | H106: 164.6822007
A107: 45 | C107: =C33*$K$2 -> 412.0100927 | D107: 357.9959553 | E107: 326.6230823 | F107: 280.528311 | G107: 202.553015 | H107: 170.9770813
A108: 46 | C108: =C34*$K$2 -> 426.4274 | D108: 370.7887773 | E108: 338.2990707 | F108: 291.2905263 | G108: 210.2693203 | H108: 177.4750227
A109: 47 | C109: =C35*$K$2 -> 440.8447073 | D109: 383.480069 | E109: 349.7719983 | F109: 302.3573327 | G109: 217.8840953 | H109: 183.8714337
A110: 48 | C110: =C36*$K$2 -> 456.581909 | D110: 396.9836033 | E110: 361.9556383 | F110: 313.9317907 | G110: 225.701931 | H110: 190.4709053
A111: 49 | C111: =C37*$K$2 -> 472.3191107 | D111: 410.6901983 | E111: 374.342339 | F111: 325.2016577 | G111: 233.7228273 | H111: 197.1719073
A112: 50 | C112: =C38*$K$2 -> 487.5486607 | D112: 423.990672 | E112: 386.3229183 | F112: 336.7761157 | G112: 241.540663 | H112: 204.07597
A113: 51 | C113: =C39*$K$2 -> 519.1245943 | D113: 451.5053923 | E113: 411.7055017 | F113: 359.5189103 | G113: 257.8870467 | H113: 217.3764437
A114: 52 | C114: =C40*$K$2 -> 534.9633263 | D114: 465.110457 | E114: 424.3967933 | F114: 370.7887773 | G114: 266.0094733 | H114: 224.3820367
A115: 53 | C115: =C41*$K$2 -> 554.1525593 | D115: 482.0660227 | E115: 439.4232827 | F115: 385.7137363 | G115: 275.8579157 | H115: 232.707524
A116: 54 | C116: =C42*$K$2 -> 573.3417923 | D116: 498.1078153 | E116: 454.5513023 | F116: 399.927983 | G116: 285.706358 | H116: 241.0330113
A117: 55 | C117: =C43*$K$2 -> 591.820313 | D117: 514.9618507 | E117: 469.1716703 | F117: 414.24376 | G117: 295.5548003 | H117: 249.460029
A118: 56 | C118: =C44*$K$2 -> 610.9080157 | D118: 531.0036433 | E118: 484.29969 | F118: 428.559537 | G118: 305.6063033 | H118: 257.683986
A119: 57 | C119: =C45*$K$2 -> 629.6911273 | D119: 547.5530877 | E119: 499.3261793 | F119: 442.7737837 | G119: 315.1501547 | H119: 265.907943
A120: 58 | C120: =C46*$K$2 -> 651.520149 | D120: 566.53926 | E120: 515.1649113 | F120: 461.9630167 | G120: 327.739916 | H120: 276.568628
A121: 59 | C121: =C47*$K$2 -> 673.2476403 | D121: 585.6269627 | E121: 530.8005827 | F121: 480.644598 | G121: 339.923556 | H121: 286.7216613
A122: 60 | C122: =C48*$K$2 -> 694.9751317 | D122: 604.308544 | E122: 546.5377843 | F122: 499.3261793 | G122: 352.716378 | H122: 297.4838767
A123: 61 | C123: =C49*$K$2 -> 732.6428853 | D123: 637.204372 | E123: 579.1290213 | F123: 525.8255963 | G123: 371.60102 | H123: 313.5256693
A124: 62 | C124: =C50*$K$2 -> 766.1478953 | D124: 665.9374563 | E124: 607.1513933 | F124: 549.8882853 | G124: 388.048934 | H124: 327.2322643
A125: 63 | C125: =C51*$K$2 -> 804.9324827 | D125: 700.254709 | E125: 638.422736 | F125: 578.113718 | G125: 408.456531 | H125: 344.6954817
A126: 64 | C126: =C52*$K$2 -> 851.331845 | D126: 740.6637817 | E126: 675.4813077 | F126: 611.009546 | G126: 431.910038 | H126: 364.4938967
A127: 65 | C127: =C53*$K$2 -> 907.2750587 | D127: 788.7891597 | E127: 719.139351 | F127: 656.7997263 | G127: 462.1660773 | H127: 390.0795407
A128: 66 | C128: =C54*$K$2 -> 972.4575327 | D128: 845.9507373 | E128: 771.1228817 | F128: 709.2909087 | G128: 498.310876 | H128: 420.33558
A129: 67 | C129: =C55*$K$2 -> 1050.026707 | D129: 912.9607573 | E129: 832.9548547 | F129: 766.2494257 | G129: 538.3138273 | H129: 454.145181
A130: 68 | C130: =C56*$K$2 -> 1139.474931 | D130: 990.7329927 | E130: 903.416906 | F130: 831.0257783 | G130: 583.291765 | H130: 492.0159953
A131: 69 | C131: =C57*$K$2 -> 1243.035871 | D131: 1081.094989 | E131: 985.8595367 | F131: 907.7827103 | G131: 637.204372 | H131: 537.603115
A132: 70 | C132: =C58*$K$2 -> 1363.653907 | D132: 1185.975824 | E132: 1071.754199 | F132: 1009.922226 | G132: 704.4174527 | H132: 594.3585713
A133: 71 | C133: =C59*$K$2 -> 1501.5321 | D133: 1305.680087 | E133: 1190.646219 | F133: 1112.061741 | G133: 776.097868 | H133: 654.7691197
A134: 72 | C134: =C60*$K$2 -> 1661.340844 | D134: 1444.878174 | E134: 1317.254545 | F134: 1231.055292 | G134: 858.8450897 | H134: 724.5204587
A135: 73 | C135: =C61*$K$2 -> 1845.313808 | D135: 1604.483858 | E135: 1462.747512 | F135: 1366.090635 | G135: 953.36983 | H135: 804.2217703
A136: 74 | C136: =C62*$K$2 -> 2057.207614 | D136: 1788.456822 | E136: 1630.678684 | F136: 1523.259591 | G136: 1062.92106 | H136: 896.715904
A137: 75 | C137: =C63*$K$2 -> 2300.169702 | D137: 2000.249097 | E137: 1816.073072 | F137: 1713.832027 | G137: 1192.879886 | H137: 1006.571725
A138: 76 | C138: =C64*$K$2 -> 2579.276588 | D138: 2242.602003 | E138: 2043.196428 | F138: 1921.86768 | G138: 1337.560611 | H138: 1128.611185
A139: 77 | C139: =C65*$K$2 -> 2896.355819 | D139: 2518.764509 | E139: 2296.51461 | F139: 2158.433356 | G139: 1502.039751 | H139: 1267.403151
A140: 78 | C140: =C66*$K$2 -> 3254.351774 | D140: 2829.954981 | E140: 2580.291891 | F140: 2425.052012 | G140: 1688.043322 | H140: 1424.064455
A141: 79 | C141: =C67*$K$2 -> 3656.818016 | D141: 3179.726979 | E141: 2899.503259 | F141: 2724.972616 | G141: 1896.383566 | H141: 1599.813462
A142: 80 | C142: =C68*$K$2 -> 4137.868735 | D142: 3598.235013 | E142: 3280.648131 | F142: 3083.070102 | G142: 2145.640534 | H142: 1810.184313
A143: 81 | C143: =C69*$K$2 -> 4137.868735 | D143: 3598.235013 | E143: 3280.648131 | F143: 3083.070102 | G143: 2145.640534 | H143: 1810.184313
A144: 82 | C144: =C70*$K$2 -> 4137.868735 | D144: 3598.235013 | E144: 3280.648131 | F144: 3083.070102 | G144: 2145.640534 | H144: 1810.184313
A145: 83 | C145: =C71*$K$2 -> 4137.868735 | D145: 3598.235013 | E145: 3280.648131 | F145: 3083.070102 | G145: 2145.640534 | H145: 1810.184313
A146: 84 | B146: o más | C146: =C72*$K$2 -> 4137.868735 | D146: 3598.235013 | E146: 3280.648131 | F146: 3083.070102 | G146: 2145.640534 | H146: 1810.184313
A147: 1 | B147: Hijo | C147: =C73*$K$2 -> 113.003261 | D147: 98.382893 | E147: 89.549754 | F147: 52.998834 | G147: 44.57181633 | H147: 37.769284
A148: 2 | B148: Hijos | C148: =C74*$K$2 -> 190.2678447 | D148: 165.697504 | E148: 151.077136 | F148: 78.68600833 | G148: 69.751339 | H148: 58.88759333
A149: 3 | B149: Hijos o más | C149: =C75*$K$2 -> 279.4114773 | D149: 242.8605573 | E149: 221.3361267 | F149: 113.003261 | G149: 101.6318637 | H149: 85.590071
A152: BUPA GLOBAL PREMIER
A153: TARIFAS ANUALES
A155: EDAD | C155: 2000 | D155: 3500 | E155: 5000 | F155: 10000 | I155: TARIFAS BASE | N155: TARIFAS BASE COND ESCUENTO
A156: 18 | C156: =N156*$X$2 -> 0 | D156: =O156*$X$2 -> 0 | E156: 0 | F156: 0 | I156: 4297 | J156: 3648 | K156: 3164 | L156: 2353 | N156: =I156*$Q$4 -> 0 | O156: =J156*$Q$4 -> 0 | P156: 0 | Q156: 0
A157: 19 | C157: =N157*$X$2 -> 0 | D157: =O157*$X$2 -> 0 | E157: =P157*$X$2 -> 0 | F157: =Q157*$X$2 -> 0 | I157: 4351 | J157: 3687 | K157: 3194 | L157: 2377 | N157: =I157*$Q$4 -> 0 | O157: =J157*$Q$4 -> 0 | P157: =K157*$Q$4 -> 0 | Q157: =L157*$Q$4 -> 0
A158: 20 | C158: 0 | D158: 0 | E158: 0 | F158: 0 | I158: 4405 | J158: 3727 | K158: 3226 | L158: 2400 | N158: 0 | O158: 0 | P158: 0 | Q158: 0
A159: 21 | C159: 0 | D159: 0 | E159: 0 | F159: 0 | I159: 4460 | J159: 3769 | K159: 3259 | L159: 2425 | N159: 0 | O159: 0 | P159: 0 | Q159: 0
A160: 22 | C160: 0 | D160: 0 | E160: 0 | F160: 0 | I160: 4517 | J160: 3812 | K160: 3293 | L160: 2449 | N160: 0 | O160: 0 | P160: 0 | Q160: 0
A161: 23 | C161: 0 | D161: 0 | E161: 0 | F161: 0 | I161: 4577 | J161: 3858 | K161: 3330 | L161: 2477 | N161: 0 | O161: 0 | P161: 0 | Q161: 0
A162: 24 | C162: 0 | D162: 0 | E162: 0 | F162: 0 | I162: 4640 | J162: 3907 | K162: 3367 | L162: 2505 | N162: 0 | O162: 0 | P162: 0 | Q162: 0
A163: 25 | C163: 0 | D163: 0 | E163: 0 | F163: 0 | I163: 4703 | J163: 3953 | K163: 3405 | L163: 2533 | N163: 0 | O163: 0 | P163: 0 | Q163: 0
A164: 26 | C164: 0 | D164: 0 | E164: 0 | F164: 0 | I164: 4796 | J164: 4024 | K164: 3461 | L164: 2575 | N164: 0 | O164: 0 | P164: 0 | Q164: 0
A165: 27 | C165: 0 | D165: 0 | E165: 0 | F165: 0 | I165: 4892 | J165: 4098 | K165: 3522 | L165: 2620 | N165: 0 | O165: 0 | P165: 0 | Q165: 0
A166: 28 | C166: 0 | D166: 0 | E166: 0 | F166: 0 | I166: 4992 | J166: 4176 | K166: 3583 | L166: 2666 | N166: 0 | O166: 0 | P166: 0 | Q166: 0
A167: 29 | C167: 0 | D167: 0 | E167: 0 | F167: 0 | I167: 5096 | J167: 4254 | K167: 3648 | L167: 2714 | N167: 0 | O167: 0 | P167: 0 | Q167: 0
A168: 30 | C168: 0 | D168: 0 | E168: 0 | F168: 0 | I168: 5204 | J168: 4338 | K168: 3717 | L168: 2765 | N168: 0 | O168: 0 | P168: 0 | Q168: 0
A169: 31 | C169: 0 | D169: 0 | E169: 0 | F169: 0 | I169: 5315 | J169: 4426 | K169: 3785 | L169: 2816 | N169: 0 | O169: 0 | P169: 0 | Q169: 0
A170: 32 | C170: 0 | D170: 0 | E170: 0 | F170: 0 | I170: 5431 | J170: 4514 | K170: 3859 | L170: 2871 | N170: 0 | O170: 0 | P170: 0 | Q170: 0
A171: 33 | C171: 0 | D171: 0 | E171: 0 | F171: 0 | I171: 5549 | J171: 4608 | K171: 3935 | L171: 2927 | N171: 0 | O171: 0 | P171: 0 | Q171: 0
A172: 34 | C172: 0 | D172: 0 | E172: 0 | F172: 0 | I172: 5673 | J172: 4705 | K172: 4015 | L172: 2987 | N172: 0 | O172: 0 | P172: 0 | Q172: 0
A173: 35 | C173: 0 | D173: 0 | E173: 0 | F173: 0 | I173: 5800 | J173: 4804 | K173: 4096 | L173: 3047 | N173: 0 | O173: 0 | P173: 0 | Q173: 0
A174: 36 | C174: 0 | D174: 0 | E174: 0 | F174: 0 | I174: 5930 | J174: 4907 | K174: 4179 | L174: 3108 | N174: 0 | O174: 0 | P174: 0 | Q174: 0
A175: 37 | C175: 0 | D175: 0 | E175: 0 | F175: 0 | I175: 6064 | J175: 5013 | K175: 4274 | L175: 3180 | N175: 0 | O175: 0 | P175: 0 | Q175: 0
A176: 38 | C176: 0 | D176: 0 | E176: 0 | F176: 0 | I176: 6201 | J176: 5122 | K176: 4383 | L176: 3260 | N176: 0 | O176: 0 | P176: 0 | Q176: 0
A177: 39 | C177: 0 | D177: 0 | E177: 0 | F177: 0 | I177: 6345 | J177: 5236 | K177: 4495 | L177: 3344 | N177: 0 | O177: 0 | P177: 0 | Q177: 0
A178: 40 | C178: 0 | D178: 0 | E178: 0 | F178: 0 | I178: 6489 | J178: 5351 | K178: 4609 | L178: 3430 | N178: 0 | O178: 0 | P178: 0 | Q178: 0
A179: 41 | C179: 0 | D179: 0 | E179: 0 | F179: 0 | I179: 6639 | J179: 5469 | K179: 4728 | L179: 3518 | N179: 0 | O179: 0 | P179: 0 | Q179: 0
A180: 42 | C180: 0 | D180: 0 | E180: 0 | F180: 0 | I180: 6794 | J180: 5592 | K180: 4849 | L180: 3608 | N180: 0 | O180: 0 | P180: 0 | Q180: 0
A181: 43 | C181: 0 | D181: 0 | E181: 0 | F181: 0 | I181: 6949 | J181: 5717 | K181: 4972 | L181: 3699 | N181: 0 | O181: 0 | P181: 0 | Q181: 0
A182: 44 | C182: 0 | D182: 0 | E182: 0 | F182: 0 | I182: 7111 | J182: 5845 | K182: 5099 | L182: 3793 | N182: 0 | O182: 0 | P182: 0 | Q182: 0
A183: 45 | C183: 0 | D183: 0 | E183: 0 | F183: 0 | I183: 7277 | J183: 5977 | K183: 5229 | L183: 3891 | N183: 0 | O183: 0 | P183: 0 | Q183: 0
A184: 46 | C184: 0 | D184: 0 | E184: 0 | F184: 0 | I184: 7445 | J184: 6112 | K184: 5364 | L184: 3989 | N184: 0 | O184: 0 | P184: 0 | Q184: 0
A185: 47 | C185: 0 | D185: 0 | E185: 0 | F185: 0 | I185: 7619 | J185: 6250 | K185: 5500 | L185: 4091 | N185: 0 | O185: 0 | P185: 0 | Q185: 0
A186: 48 | C186: 0 | D186: 0 | E186: 0 | F186: 0 | I186: 7794 | J186: 6391 | K186: 5640 | L186: 4195 | N186: 0 | O186: 0 | P186: 0 | Q186: 0
A187: 49 | C187: 0 | D187: 0 | E187: 0 | F187: 0 | I187: 7974 | J187: 6535 | K187: 5782 | L187: 4300 | N187: 0 | O187: 0 | P187: 0 | Q187: 0
A188: 50 | C188: 0 | D188: 0 | E188: 0 | F188: 0 | I188: 8158 | J188: 6684 | K188: 5926 | L188: 4409 | N188: 0 | O188: 0 | P188: 0 | Q188: 0
A189: 51 | C189: 0 | D189: 0 | E189: 0 | F189: 0 | I189: 8346 | J189: 6835 | K189: 6074 | L189: 4519 | N189: 0 | O189: 0 | P189: 0 | Q189: 0
A190: 52 | C190: 0 | D190: 0 | E190: 0 | F190: 0 | I190: 8538 | J190: 6989 | K190: 6227 | L190: 4632 | N190: 0 | O190: 0 | P190: 0 | Q190: 0
A191: 53 | C191: 0 | D191: 0 | E191: 0 | F191: 0 | I191: 8733 | J191: 7148 | K191: 6382 | L191: 4747 | N191: 0 | O191: 0 | P191: 0 | Q191: 0
A192: 54 | C192: 0 | D192: 0 | E192: 0 | F192: 0 | I192: 8931 | J192: 7308 | K192: 6539 | L192: 4864 | N192: 0 | O192: 0 | P192: 0 | Q192: 0
A193: 55 | C193: 0 | D193: 0 | E193: 0 | F193: 0 | I193: 9135 | J193: 7471 | K193: 6700 | L193: 4984 | N193: 0 | O193: 0 | P193: 0 | Q193: 0
A194: 56 | C194: 0 | D194: 0 | E194: 0 | F194: 0 | I194: 9342 | J194: 7639 | K194: 6864 | L194: 5107 | N194: 0 | O194: 0 | P194: 0 | Q194: 0
A195: 57 | C195: 0 | D195: 0 | E195: 0 | F195: 0 | I195: 9551 | J195: 7808 | K195: 7029 | L195: 5228 | N195: 0 | O195: 0 | P195: 0 | Q195: 0
A196: 58 | C196: 0 | D196: 0 | E196: 0 | F196: 0 | I196: 9766 | J196: 7982 | K196: 7198 | L196: 5355 | N196: 0 | O196: 0 | P196: 0 | Q196: 0
A197: 59 | C197: 0 | D197: 0 | E197: 0 | F197: 0 | I197: 9986 | J197: 8159 | K197: 7373 | L197: 5484 | N197: 0 | O197: 0 | P197: 0 | Q197: 0
A198: 60 | C198: 0 | D198: 0 | E198: 0 | F198: 0 | I198: 10208 | J198: 8338 | K198: 7548 | L198: 5614 | N198: 0 | O198: 0 | P198: 0 | Q198: 0
A199: 61 | C199: 0 | D199: 0 | E199: 0 | F199: 0 | I199: 11375 | J199: 9288 | K199: 8472 | L199: 6303 | N199: 0 | O199: 0 | P199: 0 | Q199: 0
A200: 62 | C200: 0 | D200: 0 | E200: 0 | F200: 0 | I200: 12639 | J200: 10315 | K200: 9475 | L200: 7047 | N200: 0 | O200: 0 | P200: 0 | Q200: 0
A201: 63 | C201: 0 | D201: 0 | E201: 0 | F201: 0 | I201: 13997 | J201: 11424 | K201: 10552 | L201: 7849 | N201: 0 | O201: 0 | P201: 0 | Q201: 0
A202: 64 | C202: 0 | D202: 0 | E202: 0 | F202: 0 | I202: 15451 | J202: 12614 | K202: 11706 | L202: 8707 | N202: 0 | O202: 0 | P202: 0 | Q202: 0
A203: 65 | C203: 0 | D203: 0 | E203: 0 | F203: 0 | I203: 17000 | J203: 13883 | K203: 12936 | L203: 9622 | N203: 0 | O203: 0 | P203: 0 | Q203: 0
A204: 66 | C204: 0 | D204: 0 | E204: 0 | F204: 0 | I204: 18644 | J204: 15235 | K204: 14243 | L204: 10594 | N204: 0 | O204: 0 | P204: 0 | Q204: 0
A205: 67 | C205: 0 | D205: 0 | E205: 0 | F205: 0 | I205: 20383 | J205: 16665 | K205: 15626 | L205: 11623 | N205: 0 | O205: 0 | P205: 0 | Q205: 0
A206: 68 | C206: 0 | D206: 0 | E206: 0 | F206: 0 | I206: 22219 | J206: 18176 | K206: 17082 | L206: 12707 | N206: 0 | O206: 0 | P206: 0 | Q206: 0
... 1549 more rows
